﻿Body Name ,Supp ID,,Supplier Name,Service Area Category,Supp Grp,Period,Invoice Date,TT,Unique Invoice Reference ,,Inv Amount,Account,Expenditure Description,Cost C,Cost Centre Name,Posted Amount
Nottinghamshire Fire and Rescue Service ,101001,Express Recruitment Ltd,Express Recruitment Ltd,Management & Support Services,1,202408,25/10/2023,P6,9108855,-818.56 ,818.56 ,1005,Admin Agency Staff,2070,Strategic Support,682.13 
Nottinghamshire Fire and Rescue Service ,104292,Macildowie Associates Ltd,Macildowie Associates Ltd,Management & Support Services,5,202408,29/10/2023,P6,9108856,-801.71 ,801.71 ,1005,Admin Agency Staff,2058,HR Support,668.09 
Nottinghamshire Fire and Rescue Service ,103696,Rebel Recruitment Limited,Rebel Recruitment Limited,Management & Support Services,5,202408,23/10/2023,P6,9108875,-768.00 ,768.00 ,1005,Admin Agency Staff,2097,ICT Service Operations,640.00 
Nottinghamshire Fire and Rescue Service ,104292,Macildowie Associates Ltd,Macildowie Associates Ltd,Management & Support Services,5,202408,29/10/2023,P6,9108887,"-1,193.58 ","1,193.58 ",1005,Admin Agency Staff,2058,HR Support,994.65 
Nottinghamshire Fire and Rescue Service ,103958,Lithium3 Technology Recruitment Limited,Lithium3 Technology Recruitment Limited,Management & Support Services,5,202408,31/10/2023,P6,9108897,"-3,876.00 ","3,876.00 ",1005,Admin Agency Staff,2097,ICT Service Operations,"3,230.00 "
Nottinghamshire Fire and Rescue Service ,101001,Express Recruitment Ltd,Express Recruitment Ltd,Management & Support Services,1,202408,01/11/2023,P6,9108924,-818.56 ,818.56 ,1005,Admin Agency Staff,2070,Strategic Support,682.13 
Nottinghamshire Fire and Rescue Service ,103958,Lithium3 Technology Recruitment Limited,Lithium3 Technology Recruitment Limited,Management & Support Services,5,202408,01/11/2023,P6,9108926,"-1,140.00 ","1,140.00 ",1005,Admin Agency Staff,2097,ICT Service Operations,950.00 
Nottinghamshire Fire and Rescue Service ,101001,Express Recruitment Ltd,Express Recruitment Ltd,Management & Support Services,1,202408,01/11/2023,P6,9108941,-491.14 ,491.14 ,1005,Admin Agency Staff,2075,Service Support Hub,409.28 
Nottinghamshire Fire and Rescue Service ,103696,Rebel Recruitment Limited,Rebel Recruitment Limited,Management & Support Services,5,202408,07/11/2023,P6,9108978,-960.00 ,960.00 ,1005,Admin Agency Staff,2097,ICT Service Operations,800.00 
Nottinghamshire Fire and Rescue Service ,104292,Macildowie Associates Ltd,Macildowie Associates Ltd,Management & Support Services,5,202408,05/11/2023,P6,9108980,"-1,199.52 ","1,199.52 ",1005,Admin Agency Staff,2058,HR Support,999.60 
Nottinghamshire Fire and Rescue Service ,103696,Rebel Recruitment Limited,Rebel Recruitment Limited,Management & Support Services,5,202408,25/10/2023,P6,9108998,-960.00 ,960.00 ,1005,Admin Agency Staff,2097,ICT Service Operations,800.00 
Nottinghamshire Fire and Rescue Service ,103696,Rebel Recruitment Limited,Rebel Recruitment Limited,Management & Support Services,5,202408,31/10/2023,P6,9108999,-960.00 ,960.00 ,1005,Admin Agency Staff,2097,ICT Service Operations,800.00 
Nottinghamshire Fire and Rescue Service ,101001,Express Recruitment Ltd,Express Recruitment Ltd,Management & Support Services,1,202408,08/11/2023,P6,9109001,-818.56 ,818.56 ,1005,Admin Agency Staff,2070,Strategic Support,682.13 
Nottinghamshire Fire and Rescue Service ,101001,Express Recruitment Ltd,Express Recruitment Ltd,Management & Support Services,1,202408,08/11/2023,P6,9109024,-818.56 ,818.56 ,1005,Admin Agency Staff,2075,Service Support Hub,682.13 
Nottinghamshire Fire and Rescue Service ,103696,Rebel Recruitment Limited,Rebel Recruitment Limited,Management & Support Services,5,202408,13/11/2023,P6,9109055,-960.00 ,960.00 ,1005,Admin Agency Staff,2097,ICT Service Operations,800.00 
Nottinghamshire Fire and Rescue Service ,103958,Lithium3 Technology Recruitment Limited,Lithium3 Technology Recruitment Limited,Management & Support Services,5,202408,08/11/2023,P6,9109056,-933.60 ,933.60 ,1005,Admin Agency Staff,2097,ICT Service Operations,760.00 
Nottinghamshire Fire and Rescue Service ,104292,Macildowie Associates Ltd,Macildowie Associates Ltd,Management & Support Services,5,202408,12/11/2023,P6,9109069,"-1,285.20 ","1,285.20 ",1005,Admin Agency Staff,2058,HR Support,"1,071.00 "
Nottinghamshire Fire and Rescue Service ,103958,Lithium3 Technology Recruitment Limited,Lithium3 Technology Recruitment Limited,Management & Support Services,5,202408,15/11/2023,P6,9109089,"-1,140.00 ","1,140.00 ",1005,Admin Agency Staff,2097,ICT Service Operations,950.00 
Nottinghamshire Fire and Rescue Service ,101001,Express Recruitment Ltd,Express Recruitment Ltd,Management & Support Services,1,202408,15/11/2023,P6,9109103,-818.56 ,818.56 ,1005,Admin Agency Staff,2070,Strategic Support,682.13 
Nottinghamshire Fire and Rescue Service ,101001,Express Recruitment Ltd,Express Recruitment Ltd,Management & Support Services,1,202408,15/11/2023,P6,9109112,-818.56 ,818.56 ,1005,Admin Agency Staff,2075,Service Support Hub,682.13 
Nottinghamshire Fire and Rescue Service ,104292,Macildowie Associates Ltd,Macildowie Associates Ltd,Management & Support Services,5,202408,19/11/2023,P6,9109148,-792.54 ,792.54 ,1005,Admin Agency Staff,2058,HR Support,660.45 
Nottinghamshire Fire and Rescue Service ,103958,Lithium3 Technology Recruitment Limited,Lithium3 Technology Recruitment Limited,Management & Support Services,5,202408,22/11/2023,P6,9109206,"-1,140.00 ","1,140.00 ",1005,Admin Agency Staff,2097,ICT Service Operations,950.00 
Nottinghamshire Fire and Rescue Service ,101001,Express Recruitment Ltd,Express Recruitment Ltd,Management & Support Services,1,202408,22/11/2023,P6,9109212,-818.56 ,818.56 ,1005,Admin Agency Staff,2075,Service Support Hub,682.13 
Nottinghamshire Fire and Rescue Service ,101001,Express Recruitment Ltd,Express Recruitment Ltd,Management & Support Services,1,202408,22/11/2023,P6,9109213,-818.56 ,818.56 ,1005,Admin Agency Staff,2070,Strategic Support,682.13 
Nottinghamshire Fire and Rescue Service ,103874,Reflect Recruitment Group Limited,Reflect Recruitment Group Limited,Management & Support Services,5,202408,20/11/2023,P6,9109230,-943.06 ,943.06 ,1005,Admin Agency Staff,2058,HR Support,785.88 
Nottinghamshire Fire and Rescue Service ,103874,Reflect Recruitment Group Limited,Reflect Recruitment Group Limited,Management & Support Services,5,202408,13/11/2023,P6,9109231,-943.06 ,943.06 ,1005,Admin Agency Staff,2058,HR Support,785.88 
Nottinghamshire Fire and Rescue Service ,104292,Macildowie Associates Ltd,Macildowie Associates Ltd,Management & Support Services,5,202408,26/11/2023,P6,9109278,-942.48 ,942.48 ,1005,Admin Agency Staff,2058,HR Support,785.40 
Nottinghamshire Fire and Rescue Service ,103839,The Knowledge Academy Limited,The Knowledge Academy Limited,Management & Support Services,5,202408,23/10/2023,P6,9108868,"-1,194.00 ","1,194.00 ",1801,Training,2086,Procurement,995.00 
Nottinghamshire Fire and Rescue Service ,100236,Asian Fire Service Association,Asian Fire Service Association,Management & Support Services,1,202408,29/11/2023,P6,9108869,-800.00 ,800.00 ,1801,Training,2070,Strategic Support,400.00 
Nottinghamshire Fire and Rescue Service ,100236,Asian Fire Service Association,Asian Fire Service Association,Management & Support Services,1,202408,29/11/2023,P6,9108870,-400.00 ,400.00 ,1801,Training,2070,Strategic Support,400.00 
Nottinghamshire Fire and Rescue Service ,103866,Richardson Associates (UK) Limited,Richardson Associates (UK) Limited,Management & Support Services,5,202408,29/09/2023,P6,9108942,-528.00 ,528.00 ,1801,Training,2054,Equalities Team,440.00 
Nottinghamshire Fire and Rescue Service ,100778,Fire Service College Ltd,Fire Service College Ltd,Management & Support Services,4,202408,26/10/2023,P6,9109029,"-13,248.00 ","13,248.00 ",1801,Training,2059,Corporate Training,"3,680.00 "
Nottinghamshire Fire and Rescue Service ,103378,R3 Safety & Rescue Limited,R3 Safety & Rescue Limited,Management & Support Services,5,202408,14/11/2023,P6,9109041,"-1,416.00 ","1,416.00 ",1801,Training,2059,Corporate Training,"1,180.00 "
Nottinghamshire Fire and Rescue Service ,103378,R3 Safety & Rescue Limited,R3 Safety & Rescue Limited,Management & Support Services,5,202408,14/11/2023,P6,9109042,"-1,416.00 ","1,416.00 ",1801,Training,2059,Corporate Training,"1,180.00 "
Nottinghamshire Fire and Rescue Service ,104017,K Lamb Associates Limited,K Lamb Associates Limited,Management & Support Services,5,202408,13/11/2023,P6,9109048,"-3,000.00 ","3,000.00 ",1801,Training,2059,Corporate Training,"2,500.00 "
Nottinghamshire Fire and Rescue Service ,101817,RCES (UK) Ltd,RCES (UK) Ltd,Management & Support Services,1,202408,17/11/2023,P6,9109091,"-4,440.00 ","4,440.00 ",1801,Training,2059,Corporate Training,"3,700.00 "
Nottinghamshire Fire and Rescue Service ,100779,Local Government Association,Local Government Association,Management & Support Services,1,202408,17/11/2023,P6,9109099,"-2,844.00 ","2,844.00 ",1801,Training,2093,Command Suite,"2,370.00 "
Nottinghamshire Fire and Rescue Service ,104168,ioda Limited,ioda Limited,Management & Support Services,5,202408,13/11/2023,P6,9109130,"-1,188.00 ","1,188.00 ",1801,Training,2054,Equalities Team,990.00 
Nottinghamshire Fire and Rescue Service ,104316,QA Ltd,QA Ltd,Management & Support Services,5,202408,22/11/2023,P6,9109150,"-4,392.00 ","4,392.00 ",1801,Training,2097,ICT Service Operations,"3,660.00 "
Nottinghamshire Fire and Rescue Service ,104242,NES Holdings (UK) Limited,NES Holdings (UK) Limited,Management & Support Services,5,202408,22/11/2023,P6,9109210,"-1,512.00 ","1,512.00 ",1801,Training,2059,Corporate Training,"1,260.00 "
Nottinghamshire Fire and Rescue Service ,103197,Legal Experience Training Limited,Legal Experience Training Limited,"Statutory Inspection, Certification & Enforcement",5,202408,28/11/2023,P6,9109285,"-2,400.00 ","2,400.00 ",1801,Training,2021,Fire Protection,"2,000.00 "
Nottinghamshire Fire and Rescue Service ,102123,The Institution Of Fire Engineers,The Institution Of Fire Engineers,"Statutory Inspection, Certification & Enforcement",1,202408,28/11/2023,P6,9109290,"-1,051.20 ","1,051.20 ",1801,Training,2021,Fire Protection,876.00 
Nottinghamshire Fire and Rescue Service ,102123,The Institution Of Fire Engineers,The Institution Of Fire Engineers,"Statutory Inspection, Certification & Enforcement",1,202408,28/11/2023,P6,9109291,"-1,051.20 ","1,051.20 ",1801,Training,2021,Fire Protection,876.00 
Nottinghamshire Fire and Rescue Service ,104248,RealWorldHR Limited,RealWorldHR Limited,Management & Support Services,5,202408,07/11/2023,P6,9108979,"-7,999.20 ","7,999.20 ",1850,Recruitment Advertising,2049,Professional Support,"6,666.00 "
Nottinghamshire Fire and Rescue Service ,100557,NCC Sundry Debtors,NCC Sundry Debtors,Management & Support Services,4,202408,10/11/2023,P6,9109303,-538.20 ,538.20 ,1850,Recruitment Advertising,2049,Professional Support,448.50 
Nottinghamshire Fire and Rescue Service ,103923,Bupa UK Insurance Services,Bupa UK Insurance Services,Management & Support Services,5,202408,30/10/2023,P6,9108876,"-3,351.42 ","3,351.42 ",1860,Employee Benefits Schemes,2049,Professional Support,"3,351.42 "
Nottinghamshire Fire and Rescue Service ,102280,Amptron Electrical Services,Amptron Electrical Services,Management & Support Services,1,202408,27/10/2023,P6,9108877,"-2,592.00 ","2,592.00 ",2000,Buildings Repairs and Maintenance - Reactive,2087,Estates Department (Previously Premises),"2,160.00 "
Nottinghamshire Fire and Rescue Service ,100125,Nottinghamshire County Council,Nottinghamshire County Council,Operational Responses,1,202408,06/11/2023,P6,9108964,-278.40 ,278.40 ,2000,Buildings Repairs and Maintenance - Reactive,1020,Stockhill,232.00 
Nottinghamshire Fire and Rescue Service ,102211,Promotional Displays & Signs Company,Promotional Displays & Signs Company,Operational Responses,1,202408,31/10/2023,P6,9109083,"-1,179.60 ","1,179.60 ",2000,Buildings Repairs and Maintenance - Reactive,1025,Hucknall,983.00 
Nottinghamshire Fire and Rescue Service ,104053,Kings Security Systems Limited T/A Kings Secure Technologies,Kings Security Systems Limited T/A Kings Secure Technologies,Management & Support Services,5,202408,30/09/2023,P6,9108888,"-1,436.40 ","1,436.40 ",2050,Building Maintenance - Planned,1035,Headquarters,"1,197.00 "
Nottinghamshire Fire and Rescue Service ,103837,BWT UK Limited,BWT UK Limited,Management & Support Services,5,202408,31/10/2023,P6,9108927,-571.52 ,571.52 ,2050,Building Maintenance - Planned,2087,Estates Department (Previously Premises),476.27 
Nottinghamshire Fire and Rescue Service ,102280,Amptron Electrical Services,Amptron Electrical Services,Operational Responses,1,202408,03/11/2023,P6,9108933,"-33,871.52 ","33,871.52 ",2050,Building Maintenance - Planned,1001,Mansfield,"2,070.39 "
Nottinghamshire Fire and Rescue Service ,102280,Amptron Electrical Services,Amptron Electrical Services,Operational Responses,1,202408,03/11/2023,P6,9108933,"-33,871.52 ","33,871.52 ",2050,Building Maintenance - Planned,1002,Blidworth,645.87 
Nottinghamshire Fire and Rescue Service ,102280,Amptron Electrical Services,Amptron Electrical Services,Operational Responses,1,202408,03/11/2023,P6,9108933,"-33,871.52 ","33,871.52 ",2050,Building Maintenance - Planned,1003,London Road,"2,297.19 "
Nottinghamshire Fire and Rescue Service ,102280,Amptron Electrical Services,Amptron Electrical Services,Operational Responses,1,202408,03/11/2023,P6,9108933,"-33,871.52 ","33,871.52 ",2050,Building Maintenance - Planned,1005,Ashfield,"1,315.33 "
Nottinghamshire Fire and Rescue Service ,102280,Amptron Electrical Services,Amptron Electrical Services,Operational Responses,1,202408,03/11/2023,P6,9108933,"-33,871.52 ","33,871.52 ",2050,Building Maintenance - Planned,1006,Edwinstowe,393.36 
Nottinghamshire Fire and Rescue Service ,102280,Amptron Electrical Services,Amptron Electrical Services,Operational Responses,1,202408,03/11/2023,P6,9108933,"-33,871.52 ","33,871.52 ",2050,Building Maintenance - Planned,1007,Warsop,151.25 
Nottinghamshire Fire and Rescue Service ,102280,Amptron Electrical Services,Amptron Electrical Services,Operational Responses,1,202408,03/11/2023,P6,9108933,"-33,871.52 ","33,871.52 ",2050,Building Maintenance - Planned,1008,Worksop,"1,103.69 "
Nottinghamshire Fire and Rescue Service ,102280,Amptron Electrical Services,Amptron Electrical Services,Operational Responses,1,202408,03/11/2023,P6,9108933,"-33,871.52 ","33,871.52 ",2050,Building Maintenance - Planned,1010,Harworth,156.24 
Nottinghamshire Fire and Rescue Service ,102280,Amptron Electrical Services,Amptron Electrical Services,Operational Responses,1,202408,03/11/2023,P6,9108933,"-33,871.52 ","33,871.52 ",2050,Building Maintenance - Planned,1011,Misterton,556.01 
Nottinghamshire Fire and Rescue Service ,102280,Amptron Electrical Services,Amptron Electrical Services,Operational Responses,1,202408,03/11/2023,P6,9108933,"-33,871.52 ","33,871.52 ",2050,Building Maintenance - Planned,1012,Retford,"1,409.81 "
Nottinghamshire Fire and Rescue Service ,102280,Amptron Electrical Services,Amptron Electrical Services,Operational Responses,1,202408,03/11/2023,P6,9108933,"-33,871.52 ","33,871.52 ",2050,Building Maintenance - Planned,1013,Tuxford,429.76 
Nottinghamshire Fire and Rescue Service ,102280,Amptron Electrical Services,Amptron Electrical Services,Operational Responses,1,202408,03/11/2023,P6,9108933,"-33,871.52 ","33,871.52 ",2050,Building Maintenance - Planned,1014,Southwell,556.01 
Nottinghamshire Fire and Rescue Service ,102280,Amptron Electrical Services,Amptron Electrical Services,Operational Responses,1,202408,03/11/2023,P6,9108933,"-33,871.52 ","33,871.52 ",2050,Building Maintenance - Planned,1015,Collingham,151.25 
Nottinghamshire Fire and Rescue Service ,102280,Amptron Electrical Services,Amptron Electrical Services,Operational Responses,1,202408,03/11/2023,P6,9108933,"-33,871.52 ","33,871.52 ",2050,Building Maintenance - Planned,1016,Newark,"1,136.13 "
Nottinghamshire Fire and Rescue Service ,102280,Amptron Electrical Services,Amptron Electrical Services,Operational Responses,1,202408,03/11/2023,P6,9108933,"-33,871.52 ","33,871.52 ",2050,Building Maintenance - Planned,1017,Bingham,111.31 
Nottinghamshire Fire and Rescue Service ,102280,Amptron Electrical Services,Amptron Electrical Services,Operational Responses,1,202408,03/11/2023,P6,9108933,"-33,871.52 ","33,871.52 ",2050,Building Maintenance - Planned,1019,West Bridgford,"1,076.41 "
Nottinghamshire Fire and Rescue Service ,102280,Amptron Electrical Services,Amptron Electrical Services,Operational Responses,1,202408,03/11/2023,P6,9108933,"-33,871.52 ","33,871.52 ",2050,Building Maintenance - Planned,1020,Stockhill,"1,406.05 "
Nottinghamshire Fire and Rescue Service ,102280,Amptron Electrical Services,Amptron Electrical Services,Operational Responses,1,202408,03/11/2023,P6,9108933,"-33,871.52 ","33,871.52 ",2050,Building Maintenance - Planned,1023,Stapleford,511.09 
Nottinghamshire Fire and Rescue Service ,102280,Amptron Electrical Services,Amptron Electrical Services,Operational Responses,1,202408,03/11/2023,P6,9108933,"-33,871.52 ","33,871.52 ",2050,Building Maintenance - Planned,1024,Eastwood,106.32 
Nottinghamshire Fire and Rescue Service ,102280,Amptron Electrical Services,Amptron Electrical Services,Operational Responses,1,202408,03/11/2023,P6,9108933,"-33,871.52 ","33,871.52 ",2050,Building Maintenance - Planned,1026,Arnold,468.22 
Nottinghamshire Fire and Rescue Service ,102280,Amptron Electrical Services,Amptron Electrical Services,Operational Responses,1,202408,03/11/2023,P6,9108933,"-33,871.52 ","33,871.52 ",2050,Building Maintenance - Planned,1027,Carlton,"4,273.12 "
Nottinghamshire Fire and Rescue Service ,102280,Amptron Electrical Services,Amptron Electrical Services,Operational Responses,1,202408,03/11/2023,P6,9108933,"-33,871.52 ","33,871.52 ",2050,Building Maintenance - Planned,1028,East Leake,556.01 
Nottinghamshire Fire and Rescue Service ,102280,Amptron Electrical Services,Amptron Electrical Services,Operational Responses,1,202408,03/11/2023,P6,9108933,"-33,871.52 ","33,871.52 ",2050,Building Maintenance - Planned,1029,Highfields Station,"3,716.69 "
Nottinghamshire Fire and Rescue Service ,102280,Amptron Electrical Services,Amptron Electrical Services,Management & Support Services,1,202408,03/11/2023,P6,9108933,"-33,871.52 ","33,871.52 ",2050,Building Maintenance - Planned,1030,Service Development Centre,"3,628.76 "
Nottinghamshire Fire and Rescue Service ,102280,Amptron Electrical Services,Amptron Electrical Services,Operational Responses,1,202408,03/11/2023,P6,9108934,"-28,746.40 ","28,746.40 ",2050,Building Maintenance - Planned,1001,Mansfield,"1,800.00 "
Nottinghamshire Fire and Rescue Service ,102280,Amptron Electrical Services,Amptron Electrical Services,Operational Responses,1,202408,03/11/2023,P6,9108934,"-28,746.40 ","28,746.40 ",2050,Building Maintenance - Planned,1005,Ashfield,"3,009.32 "
Nottinghamshire Fire and Rescue Service ,102280,Amptron Electrical Services,Amptron Electrical Services,Operational Responses,1,202408,03/11/2023,P6,9108934,"-28,746.40 ","28,746.40 ",2050,Building Maintenance - Planned,1011,Misterton,"3,963.70 "
Nottinghamshire Fire and Rescue Service ,102280,Amptron Electrical Services,Amptron Electrical Services,Operational Responses,1,202408,03/11/2023,P6,9108934,"-28,746.40 ","28,746.40 ",2050,Building Maintenance - Planned,1012,Retford,77.22 
Nottinghamshire Fire and Rescue Service ,102280,Amptron Electrical Services,Amptron Electrical Services,Operational Responses,1,202408,03/11/2023,P6,9108934,"-28,746.40 ","28,746.40 ",2050,Building Maintenance - Planned,1017,Bingham,209.10 
Nottinghamshire Fire and Rescue Service ,102280,Amptron Electrical Services,Amptron Electrical Services,Operational Responses,1,202408,03/11/2023,P6,9108934,"-28,746.40 ","28,746.40 ",2050,Building Maintenance - Planned,1020,Stockhill,"14,896.00 "
Nottinghamshire Fire and Rescue Service ,104053,Kings Security Systems Limited T/A Kings Secure Technologies,Kings Security Systems Limited T/A Kings Secure Technologies,Management & Support Services,5,202408,31/10/2023,P6,9108963,"-1,218.00 ","1,218.00 ",2050,Building Maintenance - Planned,1035,Headquarters,"1,015.00 "
Nottinghamshire Fire and Rescue Service ,102280,Amptron Electrical Services,Amptron Electrical Services,Operational Responses,1,202408,28/11/2023,P6,9109312,"-20,651.86 ","20,651.86 ",2050,Building Maintenance - Planned,1020,Stockhill,"17,209.88 "
Nottinghamshire Fire and Rescue Service ,102744,EDF Energy,EDF Energy,Operational Responses,1,202408,31/10/2023,P6,9108883,-321.73 ,321.73 ,2100,Electricity,2078,Mansfield Fire Station Museum,306.41 
Nottinghamshire Fire and Rescue Service ,102744,EDF Energy,EDF Energy,Operational Responses,1,202408,31/10/2023,P6,9108900,"-1,119.70 ","1,119.70 ",2100,Electricity,1013,Tuxford,933.08 
Nottinghamshire Fire and Rescue Service ,102744,EDF Energy,EDF Energy,Operational Responses,1,202408,31/10/2023,P6,9108901,"-2,253.60 ","2,253.60 ",2100,Electricity,1026,Arnold,"1,878.00 "
Nottinghamshire Fire and Rescue Service ,102744,EDF Energy,EDF Energy,Operational Responses,1,202408,31/10/2023,P6,9108902,"-3,865.67 ","3,865.67 ",2100,Electricity,1001,Mansfield,"3,221.39 "
Nottinghamshire Fire and Rescue Service ,102744,EDF Energy,EDF Energy,Operational Responses,1,202408,31/10/2023,P6,9108904,-564.13 ,564.13 ,2100,Electricity,1002,Blidworth,470.11 
Nottinghamshire Fire and Rescue Service ,102744,EDF Energy,EDF Energy,Operational Responses,1,202408,31/10/2023,P6,9108905,-547.99 ,547.99 ,2100,Electricity,1014,Southwell,456.66 
Nottinghamshire Fire and Rescue Service ,102744,EDF Energy,EDF Energy,Operational Responses,1,202408,01/11/2023,P6,9108949,"-3,255.92 ","3,255.92 ",2100,Electricity,1008,Worksop,"2,713.26 "
Nottinghamshire Fire and Rescue Service ,102744,EDF Energy,EDF Energy,Operational Responses,1,202408,02/11/2023,P6,9109011,"-7,369.71 ","7,369.71 ",2100,Electricity,1020,Stockhill,"6,141.43 "
Nottinghamshire Fire and Rescue Service ,102744,EDF Energy,EDF Energy,Prevention & Education,1,202408,02/11/2023,P6,9109012,"-2,704.31 ","2,704.31 ",2100,Electricity,1036,Clifton Community Safety Centre,12.26 
Nottinghamshire Fire and Rescue Service ,102744,EDF Energy,EDF Energy,Prevention & Education,1,202408,02/11/2023,P6,9109012,"-2,704.31 ","2,704.31 ",2100,Electricity,1036,Clifton Community Safety Centre,"2,243.37 "
Nottinghamshire Fire and Rescue Service ,102744,EDF Energy,EDF Energy,Operational Responses,1,202408,06/11/2023,P6,9109013,"-31,883.34 ","31,883.34 ",2100,Electricity,1003,London Road,"4,105.67 "
Nottinghamshire Fire and Rescue Service ,102744,EDF Energy,EDF Energy,Operational Responses,1,202408,06/11/2023,P6,9109013,"-31,883.34 ","31,883.34 ",2100,Electricity,1012,Retford,"2,353.60 "
Nottinghamshire Fire and Rescue Service ,102744,EDF Energy,EDF Energy,Operational Responses,1,202408,06/11/2023,P6,9109013,"-31,883.34 ","31,883.34 ",2100,Electricity,1016,Newark,"2,122.53 "
Nottinghamshire Fire and Rescue Service ,102744,EDF Energy,EDF Energy,Operational Responses,1,202408,06/11/2023,P6,9109013,"-31,883.34 ","31,883.34 ",2100,Electricity,1027,Carlton,"3,822.13 "
Nottinghamshire Fire and Rescue Service ,102744,EDF Energy,EDF Energy,Operational Responses,1,202408,06/11/2023,P6,9109013,"-31,883.34 ","31,883.34 ",2100,Electricity,1029,Highfields Station,"8,382.86 "
Nottinghamshire Fire and Rescue Service ,102744,EDF Energy,EDF Energy,Management & Support Services,1,202408,06/11/2023,P6,9109013,"-31,883.34 ","31,883.34 ",2100,Electricity,1030,Service Development Centre,"4,026.55 "
Nottinghamshire Fire and Rescue Service ,102744,EDF Energy,EDF Energy,Management & Support Services,1,202408,06/11/2023,P6,9109013,"-31,883.34 ","31,883.34 ",2100,Electricity,1035,Headquarters,"1,565.13 "
Nottinghamshire Fire and Rescue Service ,102744,EDF Energy,EDF Energy,Management & Support Services,1,202408,06/11/2023,P6,9109013,"-31,883.34 ","31,883.34 ",2100,Electricity,2087,Estates Department (Previously Premises),229.19 
Nottinghamshire Fire and Rescue Service ,102744,EDF Energy,EDF Energy,Operational Responses,1,202408,06/11/2023,P6,9109014,-636.07 ,636.07 ,2100,Electricity,1028,East Leake,1.22 
Nottinghamshire Fire and Rescue Service ,102744,EDF Energy,EDF Energy,Operational Responses,1,202408,06/11/2023,P6,9109014,-636.07 ,636.07 ,2100,Electricity,1028,East Leake,529.04 
Nottinghamshire Fire and Rescue Service ,102744,EDF Energy,EDF Energy,Operational Responses,1,202408,06/11/2023,P6,9109015,-720.65 ,720.65 ,2100,Electricity,1015,Collingham,1.38 
Nottinghamshire Fire and Rescue Service ,102744,EDF Energy,EDF Energy,Operational Responses,1,202408,06/11/2023,P6,9109015,-720.65 ,720.65 ,2100,Electricity,1015,Collingham,599.39 
Nottinghamshire Fire and Rescue Service ,102744,EDF Energy,EDF Energy,Operational Responses,1,202408,08/11/2023,P6,9109016,-753.06 ,753.06 ,2100,Electricity,1007,Warsop,1.05 
Nottinghamshire Fire and Rescue Service ,102744,EDF Energy,EDF Energy,Operational Responses,1,202408,08/11/2023,P6,9109016,-753.06 ,753.06 ,2100,Electricity,1007,Warsop,626.68 
Nottinghamshire Fire and Rescue Service ,102744,EDF Energy,EDF Energy,Operational Responses,1,202408,08/11/2023,P6,9109154,-518.40 ,518.40 ,2100,Electricity,1027,Carlton,432.00 
Nottinghamshire Fire and Rescue Service ,104098,Total Gas & Power Limited,Total Gas & Power Limited,Operational Responses,5,202408,12/11/2023,P6,9109155,"-1,692.15 ","1,692.15 ",2101,Gas,1019,West Bridgford,"1,410.12 "
Nottinghamshire Fire and Rescue Service ,104098,Total Gas & Power Limited,Total Gas & Power Limited,Operational Responses,5,202408,12/11/2023,P6,9109156,"-1,087.62 ","1,087.62 ",2101,Gas,1024,Eastwood,906.35 
Nottinghamshire Fire and Rescue Service ,104098,Total Gas & Power Limited,Total Gas & Power Limited,Operational Responses,5,202408,12/11/2023,P6,9109164,"-1,330.21 ","1,330.21 ",2101,Gas,1012,Retford,"1,108.51 "
Nottinghamshire Fire and Rescue Service ,104098,Total Gas & Power Limited,Total Gas & Power Limited,Operational Responses,5,202408,12/11/2023,P6,9109166,"-1,996.93 ","1,996.93 ",2101,Gas,1020,Stockhill,"1,664.10 "
Nottinghamshire Fire and Rescue Service ,104098,Total Gas & Power Limited,Total Gas & Power Limited,Operational Responses,5,202408,12/11/2023,P6,9109168,"-1,785.47 ","1,785.47 ",2101,Gas,1026,Arnold,"1,487.89 "
Nottinghamshire Fire and Rescue Service ,104098,Total Gas & Power Limited,Total Gas & Power Limited,Prevention & Education,5,202408,12/11/2023,P6,9109169,-603.91 ,603.91 ,2101,Gas,1036,Clifton Community Safety Centre,503.26 
Nottinghamshire Fire and Rescue Service ,104098,Total Gas & Power Limited,Total Gas & Power Limited,Operational Responses,5,202408,12/11/2023,P6,9109170,"-1,320.34 ","1,320.34 ",2101,Gas,1006,Edwinstowe,"1,100.29 "
Nottinghamshire Fire and Rescue Service ,104098,Total Gas & Power Limited,Total Gas & Power Limited,Operational Responses,5,202408,12/11/2023,P6,9109171,-783.71 ,783.71 ,2101,Gas,1016,Newark,653.09 
Nottinghamshire Fire and Rescue Service ,104098,Total Gas & Power Limited,Total Gas & Power Limited,Operational Responses,5,202408,12/11/2023,P6,9109172,"-3,079.79 ","3,079.79 ",2101,Gas,1001,Mansfield,"2,566.49 "
Nottinghamshire Fire and Rescue Service ,104098,Total Gas & Power Limited,Total Gas & Power Limited,Operational Responses,5,202408,12/11/2023,P6,9109173,"-2,769.54 ","2,769.54 ",2101,Gas,1029,Highfields Station,"2,307.94 "
Nottinghamshire Fire and Rescue Service ,104098,Total Gas & Power Limited,Total Gas & Power Limited,Management & Support Services,5,202408,12/11/2023,P6,9109174,"-1,523.44 ","1,523.44 ",2101,Gas,1030,Service Development Centre,"1,269.54 "
Nottinghamshire Fire and Rescue Service ,104098,Total Gas & Power Limited,Total Gas & Power Limited,Operational Responses,5,202408,12/11/2023,P6,9109175,-351.36 ,351.36 ,2101,Gas,1017,Bingham,334.63 
Nottinghamshire Fire and Rescue Service ,104098,Total Gas & Power Limited,Total Gas & Power Limited,Management & Support Services,5,202408,12/11/2023,P6,9109177,-267.40 ,267.40 ,2101,Gas,1035,Headquarters,254.67 
Nottinghamshire Fire and Rescue Service ,104098,Total Gas & Power Limited,Total Gas & Power Limited,Operational Responses,5,202408,12/11/2023,P6,9109178,"-3,559.50 ","3,559.50 ",2101,Gas,1001,Mansfield,"2,966.24 "
Nottinghamshire Fire and Rescue Service ,104098,Total Gas & Power Limited,Total Gas & Power Limited,Operational Responses,5,202408,12/11/2023,P6,9109185,-570.58 ,570.58 ,2101,Gas,1010,Harworth,475.49 
Nottinghamshire Fire and Rescue Service ,104098,Total Gas & Power Limited,Total Gas & Power Limited,Operational Responses,5,202408,12/11/2023,P6,9109186,"-3,480.31 ","3,480.31 ",2101,Gas,1005,Ashfield,"2,900.26 "
Nottinghamshire Fire and Rescue Service ,100055,Nottingham City Council,Nottingham City Council,Operational Responses,4,202408,09/11/2023,P6,9109187,"-2,445.12 ","2,445.12 ",2101,Gas,1003,London Road,"2,037.60 "
Nottinghamshire Fire and Rescue Service ,102276,Water Plus Limited (Payments Centre),Water Plus Limited (Payments Centre),Operational Responses,1,202408,13/11/2020,P6,9108955,-317.82 ,317.82 ,2103,Water Rates,1025,Hucknall,316.50 
Nottinghamshire Fire and Rescue Service ,102276,Water Plus Limited (Payments Centre),Water Plus Limited (Payments Centre),Operational Responses,1,202408,13/08/2021,P6,9108959,-268.17 ,268.17 ,2103,Water Rates,1025,Hucknall,265.12 
Nottinghamshire Fire and Rescue Service ,102276,Water Plus Limited (Payments Centre),Water Plus Limited (Payments Centre),Operational Responses,1,202408,30/12/2020,P6,9108950,277.82 ,-277.82 ,2103,Water Rates,1025,Hucknall,-277.82 
Nottinghamshire Fire and Rescue Service ,102276,Water Plus Limited (Payments Centre),Water Plus Limited (Payments Centre),Operational Responses,1,202408,18/09/2021,P6,9108951,268.17 ,-268.17 ,2103,Water Rates,1025,Hucknall,-268.17 
Nottinghamshire Fire and Rescue Service ,102276,Water Plus Limited (Payments Centre),Water Plus Limited (Payments Centre),Operational Responses,1,202408,13/11/2020,P6,9108955,-317.82 ,317.82 ,2104,Sewerage and Environmental,1025,Hucknall,1.32 
Nottinghamshire Fire and Rescue Service ,102276,Water Plus Limited (Payments Centre),Water Plus Limited (Payments Centre),Operational Responses,1,202408,13/08/2021,P6,9108959,-268.17 ,268.17 ,2104,Sewerage and Environmental,1025,Hucknall,3.05 
Nottinghamshire Fire and Rescue Service ,101512,Frank Key Group Merchants (Nottingham) Ltd,Frank Key Group Merchants (Nottingham) Ltd,Management & Support Services,1,202408,31/10/2023,P6,9108928,-282.00 ,282.00 ,2106,Refuse / Trade Waste Collection,1035,Headquarters,235.00 
Nottinghamshire Fire and Rescue Service ,103706,Frank Key Hire Limited,Frank Key Hire Limited,Management & Support Services,5,202408,14/11/2023,P6,9109092,-270.00 ,270.00 ,2106,Refuse / Trade Waste Collection,2084,Engineering,225.00 
Nottinghamshire Fire and Rescue Service ,103847,Veolia ES UK Limited,Veolia ES UK Limited,Management & Support Services,5,202408,31/10/2023,P6,9109209,"-1,333.94 ","1,333.94 ",2106,Refuse / Trade Waste Collection,2086,Procurement,"1,111.62 "
Nottinghamshire Fire and Rescue Service ,103847,Veolia ES UK Limited,Veolia ES UK Limited,Management & Support Services,5,202408,30/09/2023,P6,9109226,-633.83 ,633.83 ,2106,Refuse / Trade Waste Collection,2086,Procurement,528.19 
Nottinghamshire Fire and Rescue Service ,104088,Root Studio,Root Studio,Management & Support Services,5,202408,29/09/2023,P6,9109043,"-4,512.00 ","4,512.00 ",2200,Rent of Premises,2068,Prevention,"3,760.00 "
Nottinghamshire Fire and Rescue Service ,100557,NCC Sundry Debtors,NCC Sundry Debtors,Operational Responses,4,202408,01/11/2023,P6,9109025,"-1,980.19 ","1,980.19 ",2201,Grounds Maintenance,1001,Mansfield,38.10 
Nottinghamshire Fire and Rescue Service ,100557,NCC Sundry Debtors,NCC Sundry Debtors,Operational Responses,4,202408,01/11/2023,P6,9109025,"-1,980.19 ","1,980.19 ",2201,Grounds Maintenance,1002,Blidworth,67.84 
Nottinghamshire Fire and Rescue Service ,100557,NCC Sundry Debtors,NCC Sundry Debtors,Operational Responses,4,202408,01/11/2023,P6,9109025,"-1,980.19 ","1,980.19 ",2201,Grounds Maintenance,1003,London Road,46.25 
Nottinghamshire Fire and Rescue Service ,100557,NCC Sundry Debtors,NCC Sundry Debtors,Operational Responses,4,202408,01/11/2023,P6,9109025,"-1,980.19 ","1,980.19 ",2201,Grounds Maintenance,1005,Ashfield,218.75 
Nottinghamshire Fire and Rescue Service ,100557,NCC Sundry Debtors,NCC Sundry Debtors,Operational Responses,4,202408,01/11/2023,P6,9109025,"-1,980.19 ","1,980.19 ",2201,Grounds Maintenance,1006,Edwinstowe,45.28 
Nottinghamshire Fire and Rescue Service ,100557,NCC Sundry Debtors,NCC Sundry Debtors,Operational Responses,4,202408,01/11/2023,P6,9109025,"-1,980.19 ","1,980.19 ",2201,Grounds Maintenance,1007,Warsop,7.50 
Nottinghamshire Fire and Rescue Service ,100557,NCC Sundry Debtors,NCC Sundry Debtors,Operational Responses,4,202408,01/11/2023,P6,9109025,"-1,980.19 ","1,980.19 ",2201,Grounds Maintenance,1008,Worksop,45.85 
Nottinghamshire Fire and Rescue Service ,100557,NCC Sundry Debtors,NCC Sundry Debtors,Operational Responses,4,202408,01/11/2023,P6,9109025,"-1,980.19 ","1,980.19 ",2201,Grounds Maintenance,1010,Harworth,44.25 
Nottinghamshire Fire and Rescue Service ,100557,NCC Sundry Debtors,NCC Sundry Debtors,Operational Responses,4,202408,01/11/2023,P6,9109025,"-1,980.19 ","1,980.19 ",2201,Grounds Maintenance,1011,Misterton,39.50 
Nottinghamshire Fire and Rescue Service ,100557,NCC Sundry Debtors,NCC Sundry Debtors,Operational Responses,4,202408,01/11/2023,P6,9109025,"-1,980.19 ","1,980.19 ",2201,Grounds Maintenance,1012,Retford,26.76 
Nottinghamshire Fire and Rescue Service ,100557,NCC Sundry Debtors,NCC Sundry Debtors,Operational Responses,4,202408,01/11/2023,P6,9109025,"-1,980.19 ","1,980.19 ",2201,Grounds Maintenance,1013,Tuxford,30.00 
Nottinghamshire Fire and Rescue Service ,100557,NCC Sundry Debtors,NCC Sundry Debtors,Operational Responses,4,202408,01/11/2023,P6,9109025,"-1,980.19 ","1,980.19 ",2201,Grounds Maintenance,1014,Southwell,36.13 
Nottinghamshire Fire and Rescue Service ,100557,NCC Sundry Debtors,NCC Sundry Debtors,Operational Responses,4,202408,01/11/2023,P6,9109025,"-1,980.19 ","1,980.19 ",2201,Grounds Maintenance,1015,Collingham,40.80 
Nottinghamshire Fire and Rescue Service ,100557,NCC Sundry Debtors,NCC Sundry Debtors,Operational Responses,4,202408,01/11/2023,P6,9109025,"-1,980.19 ","1,980.19 ",2201,Grounds Maintenance,1016,Newark,40.00 
Nottinghamshire Fire and Rescue Service ,100557,NCC Sundry Debtors,NCC Sundry Debtors,Operational Responses,4,202408,01/11/2023,P6,9109025,"-1,980.19 ","1,980.19 ",2201,Grounds Maintenance,1017,Bingham,64.08 
Nottinghamshire Fire and Rescue Service ,100557,NCC Sundry Debtors,NCC Sundry Debtors,Operational Responses,4,202408,01/11/2023,P6,9109025,"-1,980.19 ","1,980.19 ",2201,Grounds Maintenance,1019,West Bridgford,84.48 
Nottinghamshire Fire and Rescue Service ,100557,NCC Sundry Debtors,NCC Sundry Debtors,Operational Responses,4,202408,01/11/2023,P6,9109025,"-1,980.19 ","1,980.19 ",2201,Grounds Maintenance,1020,Stockhill,216.10 
Nottinghamshire Fire and Rescue Service ,100557,NCC Sundry Debtors,NCC Sundry Debtors,Operational Responses,4,202408,01/11/2023,P6,9109025,"-1,980.19 ","1,980.19 ",2201,Grounds Maintenance,1023,Stapleford,80.50 
Nottinghamshire Fire and Rescue Service ,100557,NCC Sundry Debtors,NCC Sundry Debtors,Operational Responses,4,202408,01/11/2023,P6,9109025,"-1,980.19 ","1,980.19 ",2201,Grounds Maintenance,1024,Eastwood,28.75 
Nottinghamshire Fire and Rescue Service ,100557,NCC Sundry Debtors,NCC Sundry Debtors,Operational Responses,4,202408,01/11/2023,P6,9109025,"-1,980.19 ","1,980.19 ",2201,Grounds Maintenance,1026,Arnold,22.08 
Nottinghamshire Fire and Rescue Service ,100557,NCC Sundry Debtors,NCC Sundry Debtors,Operational Responses,4,202408,01/11/2023,P6,9109025,"-1,980.19 ","1,980.19 ",2201,Grounds Maintenance,1027,Carlton,39.58 
Nottinghamshire Fire and Rescue Service ,100557,NCC Sundry Debtors,NCC Sundry Debtors,Operational Responses,4,202408,01/11/2023,P6,9109025,"-1,980.19 ","1,980.19 ",2201,Grounds Maintenance,1028,East Leake,133.75 
Nottinghamshire Fire and Rescue Service ,100557,NCC Sundry Debtors,NCC Sundry Debtors,Operational Responses,4,202408,01/11/2023,P6,9109025,"-1,980.19 ","1,980.19 ",2201,Grounds Maintenance,1029,Highfields Station,97.08 
Nottinghamshire Fire and Rescue Service ,100557,NCC Sundry Debtors,NCC Sundry Debtors,Management & Support Services,4,202408,01/11/2023,P6,9109025,"-1,980.19 ","1,980.19 ",2201,Grounds Maintenance,1030,Service Development Centre,156.75 
Nottinghamshire Fire and Rescue Service ,100557,NCC Sundry Debtors,NCC Sundry Debtors,Operational Responses,4,202408,01/11/2023,P6,9108930,-864.00 ,864.00 ,2204,Contract Cleaning,1001,Mansfield,30.00 
Nottinghamshire Fire and Rescue Service ,100557,NCC Sundry Debtors,NCC Sundry Debtors,Operational Responses,4,202408,01/11/2023,P6,9108930,-864.00 ,864.00 ,2204,Contract Cleaning,1002,Blidworth,30.00 
Nottinghamshire Fire and Rescue Service ,100557,NCC Sundry Debtors,NCC Sundry Debtors,Operational Responses,4,202408,01/11/2023,P6,9108930,-864.00 ,864.00 ,2204,Contract Cleaning,1003,London Road,30.00 
Nottinghamshire Fire and Rescue Service ,100557,NCC Sundry Debtors,NCC Sundry Debtors,Operational Responses,4,202408,01/11/2023,P6,9108930,-864.00 ,864.00 ,2204,Contract Cleaning,1005,Ashfield,30.00 
Nottinghamshire Fire and Rescue Service ,100557,NCC Sundry Debtors,NCC Sundry Debtors,Operational Responses,4,202408,01/11/2023,P6,9108930,-864.00 ,864.00 ,2204,Contract Cleaning,1006,Edwinstowe,30.00 
Nottinghamshire Fire and Rescue Service ,100557,NCC Sundry Debtors,NCC Sundry Debtors,Operational Responses,4,202408,01/11/2023,P6,9108930,-864.00 ,864.00 ,2204,Contract Cleaning,1007,Warsop,30.00 
Nottinghamshire Fire and Rescue Service ,100557,NCC Sundry Debtors,NCC Sundry Debtors,Operational Responses,4,202408,01/11/2023,P6,9108930,-864.00 ,864.00 ,2204,Contract Cleaning,1008,Worksop,30.00 
Nottinghamshire Fire and Rescue Service ,100557,NCC Sundry Debtors,NCC Sundry Debtors,Operational Responses,4,202408,01/11/2023,P6,9108930,-864.00 ,864.00 ,2204,Contract Cleaning,1010,Harworth,30.00 
Nottinghamshire Fire and Rescue Service ,100557,NCC Sundry Debtors,NCC Sundry Debtors,Operational Responses,4,202408,01/11/2023,P6,9108930,-864.00 ,864.00 ,2204,Contract Cleaning,1011,Misterton,30.00 
Nottinghamshire Fire and Rescue Service ,100557,NCC Sundry Debtors,NCC Sundry Debtors,Operational Responses,4,202408,01/11/2023,P6,9108930,-864.00 ,864.00 ,2204,Contract Cleaning,1012,Retford,30.00 
Nottinghamshire Fire and Rescue Service ,100557,NCC Sundry Debtors,NCC Sundry Debtors,Operational Responses,4,202408,01/11/2023,P6,9108930,-864.00 ,864.00 ,2204,Contract Cleaning,1013,Tuxford,30.00 
Nottinghamshire Fire and Rescue Service ,100557,NCC Sundry Debtors,NCC Sundry Debtors,Operational Responses,4,202408,01/11/2023,P6,9108930,-864.00 ,864.00 ,2204,Contract Cleaning,1014,Southwell,30.00 
Nottinghamshire Fire and Rescue Service ,100557,NCC Sundry Debtors,NCC Sundry Debtors,Operational Responses,4,202408,01/11/2023,P6,9108930,-864.00 ,864.00 ,2204,Contract Cleaning,1015,Collingham,30.00 
Nottinghamshire Fire and Rescue Service ,100557,NCC Sundry Debtors,NCC Sundry Debtors,Operational Responses,4,202408,01/11/2023,P6,9108930,-864.00 ,864.00 ,2204,Contract Cleaning,1016,Newark,30.00 
Nottinghamshire Fire and Rescue Service ,100557,NCC Sundry Debtors,NCC Sundry Debtors,Operational Responses,4,202408,01/11/2023,P6,9108930,-864.00 ,864.00 ,2204,Contract Cleaning,1017,Bingham,30.00 
Nottinghamshire Fire and Rescue Service ,100557,NCC Sundry Debtors,NCC Sundry Debtors,Operational Responses,4,202408,01/11/2023,P6,9108930,-864.00 ,864.00 ,2204,Contract Cleaning,1019,West Bridgford,30.00 
Nottinghamshire Fire and Rescue Service ,100557,NCC Sundry Debtors,NCC Sundry Debtors,Operational Responses,4,202408,01/11/2023,P6,9108930,-864.00 ,864.00 ,2204,Contract Cleaning,1020,Stockhill,30.00 
Nottinghamshire Fire and Rescue Service ,100557,NCC Sundry Debtors,NCC Sundry Debtors,Operational Responses,4,202408,01/11/2023,P6,9108930,-864.00 ,864.00 ,2204,Contract Cleaning,1023,Stapleford,30.00 
Nottinghamshire Fire and Rescue Service ,100557,NCC Sundry Debtors,NCC Sundry Debtors,Operational Responses,4,202408,01/11/2023,P6,9108930,-864.00 ,864.00 ,2204,Contract Cleaning,1024,Eastwood,30.00 
Nottinghamshire Fire and Rescue Service ,100557,NCC Sundry Debtors,NCC Sundry Debtors,Operational Responses,4,202408,01/11/2023,P6,9108930,-864.00 ,864.00 ,2204,Contract Cleaning,1026,Arnold,30.00 
Nottinghamshire Fire and Rescue Service ,100557,NCC Sundry Debtors,NCC Sundry Debtors,Operational Responses,4,202408,01/11/2023,P6,9108930,-864.00 ,864.00 ,2204,Contract Cleaning,1027,Carlton,30.00 
Nottinghamshire Fire and Rescue Service ,100557,NCC Sundry Debtors,NCC Sundry Debtors,Operational Responses,4,202408,01/11/2023,P6,9108930,-864.00 ,864.00 ,2204,Contract Cleaning,1028,East Leake,30.00 
Nottinghamshire Fire and Rescue Service ,100557,NCC Sundry Debtors,NCC Sundry Debtors,Operational Responses,4,202408,01/11/2023,P6,9108930,-864.00 ,864.00 ,2204,Contract Cleaning,1029,Highfields Station,30.00 
Nottinghamshire Fire and Rescue Service ,100557,NCC Sundry Debtors,NCC Sundry Debtors,Management & Support Services,4,202408,01/11/2023,P6,9108930,-864.00 ,864.00 ,2204,Contract Cleaning,1030,Service Development Centre,30.00 
Nottinghamshire Fire and Rescue Service ,100557,NCC Sundry Debtors,NCC Sundry Debtors,Operational Responses,4,202408,01/11/2023,P6,9108931,"-39,783.70 ","39,783.70 ",2204,Contract Cleaning,1001,Mansfield,"2,845.17 "
Nottinghamshire Fire and Rescue Service ,100557,NCC Sundry Debtors,NCC Sundry Debtors,Operational Responses,4,202408,01/11/2023,P6,9108931,"-39,783.70 ","39,783.70 ",2204,Contract Cleaning,1002,Blidworth,268.77 
Nottinghamshire Fire and Rescue Service ,100557,NCC Sundry Debtors,NCC Sundry Debtors,Operational Responses,4,202408,01/11/2023,P6,9108931,"-39,783.70 ","39,783.70 ",2204,Contract Cleaning,1003,London Road,"3,037.54 "
Nottinghamshire Fire and Rescue Service ,100557,NCC Sundry Debtors,NCC Sundry Debtors,Operational Responses,4,202408,01/11/2023,P6,9108931,"-39,783.70 ","39,783.70 ",2204,Contract Cleaning,1005,Ashfield,"1,498.54 "
Nottinghamshire Fire and Rescue Service ,100557,NCC Sundry Debtors,NCC Sundry Debtors,Operational Responses,4,202408,01/11/2023,P6,9108931,"-39,783.70 ","39,783.70 ",2204,Contract Cleaning,1006,Edwinstowe,"1,152.27 "
Nottinghamshire Fire and Rescue Service ,100557,NCC Sundry Debtors,NCC Sundry Debtors,Operational Responses,4,202408,01/11/2023,P6,9108931,"-39,783.70 ","39,783.70 ",2204,Contract Cleaning,1007,Warsop,230.29 
Nottinghamshire Fire and Rescue Service ,100557,NCC Sundry Debtors,NCC Sundry Debtors,Operational Responses,4,202408,01/11/2023,P6,9108931,"-39,783.70 ","39,783.70 ",2204,Contract Cleaning,1008,Worksop,"1,883.29 "
Nottinghamshire Fire and Rescue Service ,100557,NCC Sundry Debtors,NCC Sundry Debtors,Operational Responses,4,202408,01/11/2023,P6,9108931,"-39,783.70 ","39,783.70 ",2204,Contract Cleaning,1010,Harworth,422.67 
Nottinghamshire Fire and Rescue Service ,100557,NCC Sundry Debtors,NCC Sundry Debtors,Operational Responses,4,202408,01/11/2023,P6,9108931,"-39,783.70 ","39,783.70 ",2204,Contract Cleaning,1011,Misterton,345.72 
Nottinghamshire Fire and Rescue Service ,100557,NCC Sundry Debtors,NCC Sundry Debtors,Operational Responses,4,202408,01/11/2023,P6,9108931,"-39,783.70 ","39,783.70 ",2204,Contract Cleaning,1012,Retford,"1,921.77 "
Nottinghamshire Fire and Rescue Service ,100557,NCC Sundry Debtors,NCC Sundry Debtors,Operational Responses,4,202408,01/11/2023,P6,9108931,"-39,783.70 ","39,783.70 ",2204,Contract Cleaning,1013,Tuxford,268.77 
Nottinghamshire Fire and Rescue Service ,100557,NCC Sundry Debtors,NCC Sundry Debtors,Operational Responses,4,202408,01/11/2023,P6,9108931,"-39,783.70 ","39,783.70 ",2204,Contract Cleaning,1014,Southwell,384.19 
Nottinghamshire Fire and Rescue Service ,100557,NCC Sundry Debtors,NCC Sundry Debtors,Operational Responses,4,202408,01/11/2023,P6,9108931,"-39,783.70 ","39,783.70 ",2204,Contract Cleaning,1015,Collingham,384.19 
Nottinghamshire Fire and Rescue Service ,100557,NCC Sundry Debtors,NCC Sundry Debtors,Operational Responses,4,202408,01/11/2023,P6,9108931,"-39,783.70 ","39,783.70 ",2204,Contract Cleaning,1016,Newark,"1,498.54 "
Nottinghamshire Fire and Rescue Service ,100557,NCC Sundry Debtors,NCC Sundry Debtors,Operational Responses,4,202408,01/11/2023,P6,9108931,"-39,783.70 ","39,783.70 ",2204,Contract Cleaning,1017,Bingham,268.77 
Nottinghamshire Fire and Rescue Service ,100557,NCC Sundry Debtors,NCC Sundry Debtors,Operational Responses,4,202408,01/11/2023,P6,9108931,"-39,783.70 ","39,783.70 ",2204,Contract Cleaning,1019,West Bridgford,"2,306.52 "
Nottinghamshire Fire and Rescue Service ,100557,NCC Sundry Debtors,NCC Sundry Debtors,Operational Responses,4,202408,01/11/2023,P6,9108931,"-39,783.70 ","39,783.70 ",2204,Contract Cleaning,1020,Stockhill,"1,883.29 "
Nottinghamshire Fire and Rescue Service ,100557,NCC Sundry Debtors,NCC Sundry Debtors,Operational Responses,4,202408,01/11/2023,P6,9108931,"-39,783.70 ","39,783.70 ",2204,Contract Cleaning,1023,Stapleford,615.04 
Nottinghamshire Fire and Rescue Service ,100557,NCC Sundry Debtors,NCC Sundry Debtors,Operational Responses,4,202408,01/11/2023,P6,9108931,"-39,783.70 ","39,783.70 ",2204,Contract Cleaning,1024,Eastwood,422.67 
Nottinghamshire Fire and Rescue Service ,100557,NCC Sundry Debtors,NCC Sundry Debtors,Operational Responses,4,202408,01/11/2023,P6,9108931,"-39,783.70 ","39,783.70 ",2204,Contract Cleaning,1026,Arnold,"1,402.35 "
Nottinghamshire Fire and Rescue Service ,100557,NCC Sundry Debtors,NCC Sundry Debtors,Operational Responses,4,202408,01/11/2023,P6,9108931,"-39,783.70 ","39,783.70 ",2204,Contract Cleaning,1027,Carlton,"2,652.79 "
Nottinghamshire Fire and Rescue Service ,100557,NCC Sundry Debtors,NCC Sundry Debtors,Operational Responses,4,202408,01/11/2023,P6,9108931,"-39,783.70 ","39,783.70 ",2204,Contract Cleaning,1028,East Leake,268.77 
Nottinghamshire Fire and Rescue Service ,100557,NCC Sundry Debtors,NCC Sundry Debtors,Operational Responses,4,202408,01/11/2023,P6,9108931,"-39,783.70 ","39,783.70 ",2204,Contract Cleaning,1029,Highfields Station,"5,075.59 "
Nottinghamshire Fire and Rescue Service ,100557,NCC Sundry Debtors,NCC Sundry Debtors,Management & Support Services,4,202408,01/11/2023,P6,9108931,"-39,783.70 ","39,783.70 ",2204,Contract Cleaning,1030,Service Development Centre,"2,115.57 "
Nottinghamshire Fire and Rescue Service ,100557,NCC Sundry Debtors,NCC Sundry Debtors,Operational Responses,4,202408,01/10/2023,P6,9109026,-864.00 ,864.00 ,2204,Contract Cleaning,1001,Mansfield,30.00 
Nottinghamshire Fire and Rescue Service ,100557,NCC Sundry Debtors,NCC Sundry Debtors,Operational Responses,4,202408,01/10/2023,P6,9109026,-864.00 ,864.00 ,2204,Contract Cleaning,1002,Blidworth,30.00 
Nottinghamshire Fire and Rescue Service ,100557,NCC Sundry Debtors,NCC Sundry Debtors,Operational Responses,4,202408,01/10/2023,P6,9109026,-864.00 ,864.00 ,2204,Contract Cleaning,1003,London Road,30.00 
Nottinghamshire Fire and Rescue Service ,100557,NCC Sundry Debtors,NCC Sundry Debtors,Operational Responses,4,202408,01/10/2023,P6,9109026,-864.00 ,864.00 ,2204,Contract Cleaning,1005,Ashfield,30.00 
Nottinghamshire Fire and Rescue Service ,100557,NCC Sundry Debtors,NCC Sundry Debtors,Operational Responses,4,202408,01/10/2023,P6,9109026,-864.00 ,864.00 ,2204,Contract Cleaning,1006,Edwinstowe,30.00 
Nottinghamshire Fire and Rescue Service ,100557,NCC Sundry Debtors,NCC Sundry Debtors,Operational Responses,4,202408,01/10/2023,P6,9109026,-864.00 ,864.00 ,2204,Contract Cleaning,1007,Warsop,30.00 
Nottinghamshire Fire and Rescue Service ,100557,NCC Sundry Debtors,NCC Sundry Debtors,Operational Responses,4,202408,01/10/2023,P6,9109026,-864.00 ,864.00 ,2204,Contract Cleaning,1008,Worksop,30.00 
Nottinghamshire Fire and Rescue Service ,100557,NCC Sundry Debtors,NCC Sundry Debtors,Operational Responses,4,202408,01/10/2023,P6,9109026,-864.00 ,864.00 ,2204,Contract Cleaning,1010,Harworth,30.00 
Nottinghamshire Fire and Rescue Service ,100557,NCC Sundry Debtors,NCC Sundry Debtors,Operational Responses,4,202408,01/10/2023,P6,9109026,-864.00 ,864.00 ,2204,Contract Cleaning,1011,Misterton,30.00 
Nottinghamshire Fire and Rescue Service ,100557,NCC Sundry Debtors,NCC Sundry Debtors,Operational Responses,4,202408,01/10/2023,P6,9109026,-864.00 ,864.00 ,2204,Contract Cleaning,1012,Retford,30.00 
Nottinghamshire Fire and Rescue Service ,100557,NCC Sundry Debtors,NCC Sundry Debtors,Operational Responses,4,202408,01/10/2023,P6,9109026,-864.00 ,864.00 ,2204,Contract Cleaning,1013,Tuxford,30.00 
Nottinghamshire Fire and Rescue Service ,100557,NCC Sundry Debtors,NCC Sundry Debtors,Operational Responses,4,202408,01/10/2023,P6,9109026,-864.00 ,864.00 ,2204,Contract Cleaning,1014,Southwell,30.00 
Nottinghamshire Fire and Rescue Service ,100557,NCC Sundry Debtors,NCC Sundry Debtors,Operational Responses,4,202408,01/10/2023,P6,9109026,-864.00 ,864.00 ,2204,Contract Cleaning,1015,Collingham,30.00 
Nottinghamshire Fire and Rescue Service ,100557,NCC Sundry Debtors,NCC Sundry Debtors,Operational Responses,4,202408,01/10/2023,P6,9109026,-864.00 ,864.00 ,2204,Contract Cleaning,1016,Newark,30.00 
Nottinghamshire Fire and Rescue Service ,100557,NCC Sundry Debtors,NCC Sundry Debtors,Operational Responses,4,202408,01/10/2023,P6,9109026,-864.00 ,864.00 ,2204,Contract Cleaning,1017,Bingham,30.00 
Nottinghamshire Fire and Rescue Service ,100557,NCC Sundry Debtors,NCC Sundry Debtors,Operational Responses,4,202408,01/10/2023,P6,9109026,-864.00 ,864.00 ,2204,Contract Cleaning,1019,West Bridgford,30.00 
Nottinghamshire Fire and Rescue Service ,100557,NCC Sundry Debtors,NCC Sundry Debtors,Operational Responses,4,202408,01/10/2023,P6,9109026,-864.00 ,864.00 ,2204,Contract Cleaning,1020,Stockhill,30.00 
Nottinghamshire Fire and Rescue Service ,100557,NCC Sundry Debtors,NCC Sundry Debtors,Operational Responses,4,202408,01/10/2023,P6,9109026,-864.00 ,864.00 ,2204,Contract Cleaning,1023,Stapleford,30.00 
Nottinghamshire Fire and Rescue Service ,100557,NCC Sundry Debtors,NCC Sundry Debtors,Operational Responses,4,202408,01/10/2023,P6,9109026,-864.00 ,864.00 ,2204,Contract Cleaning,1024,Eastwood,30.00 
Nottinghamshire Fire and Rescue Service ,100557,NCC Sundry Debtors,NCC Sundry Debtors,Operational Responses,4,202408,01/10/2023,P6,9109026,-864.00 ,864.00 ,2204,Contract Cleaning,1026,Arnold,30.00 
Nottinghamshire Fire and Rescue Service ,100557,NCC Sundry Debtors,NCC Sundry Debtors,Operational Responses,4,202408,01/10/2023,P6,9109026,-864.00 ,864.00 ,2204,Contract Cleaning,1027,Carlton,30.00 
Nottinghamshire Fire and Rescue Service ,100557,NCC Sundry Debtors,NCC Sundry Debtors,Operational Responses,4,202408,01/10/2023,P6,9109026,-864.00 ,864.00 ,2204,Contract Cleaning,1028,East Leake,30.00 
Nottinghamshire Fire and Rescue Service ,100557,NCC Sundry Debtors,NCC Sundry Debtors,Operational Responses,4,202408,01/10/2023,P6,9109026,-864.00 ,864.00 ,2204,Contract Cleaning,1029,Highfields Station,30.00 
Nottinghamshire Fire and Rescue Service ,100557,NCC Sundry Debtors,NCC Sundry Debtors,Management & Support Services,4,202408,01/10/2023,P6,9109026,-864.00 ,864.00 ,2204,Contract Cleaning,1030,Service Development Centre,30.00 
Nottinghamshire Fire and Rescue Service ,100557,NCC Sundry Debtors,NCC Sundry Debtors,Operational Responses,4,202408,01/11/2023,P6,9108929,-848.00 ,848.00 ,2205,Window Cleaning,1001,Mansfield,50.00 
Nottinghamshire Fire and Rescue Service ,100557,NCC Sundry Debtors,NCC Sundry Debtors,Operational Responses,4,202408,01/11/2023,P6,9108929,-848.00 ,848.00 ,2205,Window Cleaning,1002,Blidworth,20.00 
Nottinghamshire Fire and Rescue Service ,100557,NCC Sundry Debtors,NCC Sundry Debtors,Operational Responses,4,202408,01/11/2023,P6,9108929,-848.00 ,848.00 ,2205,Window Cleaning,1003,London Road,41.67 
Nottinghamshire Fire and Rescue Service ,100557,NCC Sundry Debtors,NCC Sundry Debtors,Operational Responses,4,202408,01/11/2023,P6,9108929,-848.00 ,848.00 ,2205,Window Cleaning,1005,Ashfield,33.33 
Nottinghamshire Fire and Rescue Service ,100557,NCC Sundry Debtors,NCC Sundry Debtors,Operational Responses,4,202408,01/11/2023,P6,9108929,-848.00 ,848.00 ,2205,Window Cleaning,1006,Edwinstowe,33.33 
Nottinghamshire Fire and Rescue Service ,100557,NCC Sundry Debtors,NCC Sundry Debtors,Operational Responses,4,202408,01/11/2023,P6,9108929,-848.00 ,848.00 ,2205,Window Cleaning,1007,Warsop,21.67 
Nottinghamshire Fire and Rescue Service ,100557,NCC Sundry Debtors,NCC Sundry Debtors,Operational Responses,4,202408,01/11/2023,P6,9108929,-848.00 ,848.00 ,2205,Window Cleaning,1008,Worksop,20.00 
Nottinghamshire Fire and Rescue Service ,100557,NCC Sundry Debtors,NCC Sundry Debtors,Operational Responses,4,202408,01/11/2023,P6,9108929,-848.00 ,848.00 ,2205,Window Cleaning,1010,Harworth,21.67 
Nottinghamshire Fire and Rescue Service ,100557,NCC Sundry Debtors,NCC Sundry Debtors,Operational Responses,4,202408,01/11/2023,P6,9108929,-848.00 ,848.00 ,2205,Window Cleaning,1011,Misterton,20.00 
Nottinghamshire Fire and Rescue Service ,100557,NCC Sundry Debtors,NCC Sundry Debtors,Operational Responses,4,202408,01/11/2023,P6,9108929,-848.00 ,848.00 ,2205,Window Cleaning,1012,Retford,50.00 
Nottinghamshire Fire and Rescue Service ,100557,NCC Sundry Debtors,NCC Sundry Debtors,Operational Responses,4,202408,01/11/2023,P6,9108929,-848.00 ,848.00 ,2205,Window Cleaning,1013,Tuxford,18.33 
Nottinghamshire Fire and Rescue Service ,100557,NCC Sundry Debtors,NCC Sundry Debtors,Operational Responses,4,202408,01/11/2023,P6,9108929,-848.00 ,848.00 ,2205,Window Cleaning,1014,Southwell,16.67 
Nottinghamshire Fire and Rescue Service ,100557,NCC Sundry Debtors,NCC Sundry Debtors,Operational Responses,4,202408,01/11/2023,P6,9108929,-848.00 ,848.00 ,2205,Window Cleaning,1015,Collingham,18.33 
Nottinghamshire Fire and Rescue Service ,100557,NCC Sundry Debtors,NCC Sundry Debtors,Operational Responses,4,202408,01/11/2023,P6,9108929,-848.00 ,848.00 ,2205,Window Cleaning,1016,Newark,25.00 
Nottinghamshire Fire and Rescue Service ,100557,NCC Sundry Debtors,NCC Sundry Debtors,Operational Responses,4,202408,01/11/2023,P6,9108929,-848.00 ,848.00 ,2205,Window Cleaning,1017,Bingham,16.67 
Nottinghamshire Fire and Rescue Service ,100557,NCC Sundry Debtors,NCC Sundry Debtors,Operational Responses,4,202408,01/11/2023,P6,9108929,-848.00 ,848.00 ,2205,Window Cleaning,1019,West Bridgford,50.00 
Nottinghamshire Fire and Rescue Service ,100557,NCC Sundry Debtors,NCC Sundry Debtors,Operational Responses,4,202408,01/11/2023,P6,9108929,-848.00 ,848.00 ,2205,Window Cleaning,1020,Stockhill,50.00 
Nottinghamshire Fire and Rescue Service ,100557,NCC Sundry Debtors,NCC Sundry Debtors,Operational Responses,4,202408,01/11/2023,P6,9108929,-848.00 ,848.00 ,2205,Window Cleaning,1023,Stapleford,18.33 
Nottinghamshire Fire and Rescue Service ,100557,NCC Sundry Debtors,NCC Sundry Debtors,Operational Responses,4,202408,01/11/2023,P6,9108929,-848.00 ,848.00 ,2205,Window Cleaning,1024,Eastwood,20.00 
Nottinghamshire Fire and Rescue Service ,100557,NCC Sundry Debtors,NCC Sundry Debtors,Operational Responses,4,202408,01/11/2023,P6,9108929,-848.00 ,848.00 ,2205,Window Cleaning,1026,Arnold,25.00 
Nottinghamshire Fire and Rescue Service ,100557,NCC Sundry Debtors,NCC Sundry Debtors,Operational Responses,4,202408,01/11/2023,P6,9108929,-848.00 ,848.00 ,2205,Window Cleaning,1027,Carlton,33.33 
Nottinghamshire Fire and Rescue Service ,100557,NCC Sundry Debtors,NCC Sundry Debtors,Operational Responses,4,202408,01/11/2023,P6,9108929,-848.00 ,848.00 ,2205,Window Cleaning,1028,East Leake,16.67 
Nottinghamshire Fire and Rescue Service ,100557,NCC Sundry Debtors,NCC Sundry Debtors,Operational Responses,4,202408,01/11/2023,P6,9108929,-848.00 ,848.00 ,2205,Window Cleaning,1029,Highfields Station,66.67 
Nottinghamshire Fire and Rescue Service ,100557,NCC Sundry Debtors,NCC Sundry Debtors,Management & Support Services,4,202408,01/11/2023,P6,9108929,-848.00 ,848.00 ,2205,Window Cleaning,1030,Service Development Centre,20.00 
Nottinghamshire Fire and Rescue Service ,104192,Disc-Lock Europe Limited,Disc-Lock Europe Limited,Management & Support Services,5,202408,23/10/2023,P6,9108867,"-4,059.60 ","4,059.60 ",3002,Purchase of Vehicle Equipment,2084,Engineering,"3,383.00 "
Nottinghamshire Fire and Rescue Service ,104192,Disc-Lock Europe Limited,Disc-Lock Europe Limited,Management & Support Services,5,202408,10/11/2023,P6,9109038,"-4,059.60 ","4,059.60 ",3002,Purchase of Vehicle Equipment,2084,Engineering,"3,383.00 "
Nottinghamshire Fire and Rescue Service ,104192,Disc-Lock Europe Limited,Disc-Lock Europe Limited,Management & Support Services,5,202408,14/11/2023,P6,9109207,"4,059.60 ","-4,059.60 ",3002,Purchase of Vehicle Equipment,2084,Engineering,"-3,332.00 "
Nottinghamshire Fire and Rescue Service ,104192,Disc-Lock Europe Limited,Disc-Lock Europe Limited,Management & Support Services,5,202408,14/11/2023,P6,9109207,"4,059.60 ","-4,059.60 ",3002,Purchase of Vehicle Equipment,2084,Engineering,-51.00 
Nottinghamshire Fire and Rescue Service ,102228,Keltruck Limited,Keltruck Limited,Management & Support Services,1,202408,01/11/2023,P6,9108939,"-1,261.94 ","1,261.94 ",3100,Fleet Maintenance - Planned,2084,Engineering,"1,051.62 "
Nottinghamshire Fire and Rescue Service ,104312,Sandbach Truck and Van Ltd,Sandbach Truck and Van Ltd,Management & Support Services,5,202408,06/11/2023,P6,9108993,"-1,980.00 ","1,980.00 ",3100,Fleet Maintenance - Planned,2084,Engineering,"1,650.00 "
Nottinghamshire Fire and Rescue Service ,103820,VIA East Midlands Ltd,VIA East Midlands Ltd,Management & Support Services,5,202408,30/10/2023,P6,9109031,"-5,614.48 ","5,614.48 ",3100,Fleet Maintenance - Planned,2084,Engineering,"4,688.12 "
Nottinghamshire Fire and Rescue Service ,103820,VIA East Midlands Ltd,VIA East Midlands Ltd,Management & Support Services,5,202408,09/11/2023,P6,9109053,"-13,581.04 ","13,581.04 ",3100,Fleet Maintenance - Planned,2084,Engineering,"11,336.31 "
Nottinghamshire Fire and Rescue Service ,102558,Merridale Ltd,Merridale Ltd,Management & Support Services,1,202408,23/11/2023,P6,9109203,-709.70 ,709.70 ,3102,Vehicle Maintenance Outsourced,2084,Engineering,591.42 
Nottinghamshire Fire and Rescue Service ,102228,Keltruck Limited,Keltruck Limited,Management & Support Services,1,202408,28/11/2023,P6,9109255,"-1,181.83 ","1,181.83 ",3102,Vehicle Maintenance Outsourced,2084,Engineering,984.86 
Nottinghamshire Fire and Rescue Service ,102951,Logistics UK,Logistics UK,Management & Support Services,5,202408,22/11/2023,P6,9109313,"-2,132.99 ","2,132.99 ",3102,Vehicle Maintenance Outsourced,2084,Engineering,"1,777.49 "
Nottinghamshire Fire and Rescue Service ,103820,VIA East Midlands Ltd,VIA East Midlands Ltd,Management & Support Services,5,202408,09/11/2023,P6,9109036,-432.91 ,432.91 ,3103,Fleet Maintenance - Unplanned,2084,Engineering,360.76 
Nottinghamshire Fire and Rescue Service ,103820,VIA East Midlands Ltd,VIA East Midlands Ltd,Management & Support Services,5,202408,30/10/2023,P6,9109050,"-41,784.56 ","41,784.56 ",3103,Fleet Maintenance - Unplanned,2084,Engineering,"34,820.47 "
Nottinghamshire Fire and Rescue Service ,103820,VIA East Midlands Ltd,VIA East Midlands Ltd,Management & Support Services,5,202408,09/11/2023,P6,9109051,"-64,465.32 ","64,465.32 ",3103,Fleet Maintenance - Unplanned,2084,Engineering,"53,721.10 "
Nottinghamshire Fire and Rescue Service ,103820,VIA East Midlands Ltd,VIA East Midlands Ltd,Management & Support Services,5,202408,09/11/2023,P6,9109037,-982.10 ,982.10 ,3104,Fleet - Accident Repairs,2084,Engineering,818.42 
Nottinghamshire Fire and Rescue Service ,103820,VIA East Midlands Ltd,VIA East Midlands Ltd,Management & Support Services,5,202408,30/10/2023,P6,9109039,"-1,997.08 ","1,997.08 ",3104,Fleet - Accident Repairs,2084,Engineering,"1,664.23 "
Nottinghamshire Fire and Rescue Service ,103766,CERTAS,CERTAS,Operational Responses,5,202408,01/11/2023,P6,9108937,"-11,142.00 ","11,142.00 ",3200,Fuel - Vehicle,1019,West Bridgford,"9,285.00 "
Nottinghamshire Fire and Rescue Service ,102558,Merridale Ltd,Merridale Ltd,Operational Responses,1,202408,06/11/2023,P6,9108969,-968.59 ,968.59 ,3200,Fuel - Vehicle,1029,Highfields Station,807.16 
Nottinghamshire Fire and Rescue Service ,103766,CERTAS,CERTAS,Operational Responses,5,202408,02/11/2023,P6,9108990,"-12,566.40 ","12,566.40 ",3200,Fuel - Vehicle,1008,Worksop,"10,472.00 "
Nottinghamshire Fire and Rescue Service ,103766,CERTAS,CERTAS,Operational Responses,5,202408,02/11/2023,P6,9108992,"-11,884.80 ","11,884.80 ",3200,Fuel - Vehicle,1020,Stockhill,"9,904.00 "
Nottinghamshire Fire and Rescue Service ,103766,CERTAS,CERTAS,Operational Responses,5,202408,15/11/2023,P6,9109152,"-10,011.96 ","10,011.96 ",3200,Fuel - Vehicle,1006,Edwinstowe,"8,343.30 "
Nottinghamshire Fire and Rescue Service ,103766,CERTAS,CERTAS,Operational Responses,5,202408,23/11/2023,P6,9109204,"-11,077.10 ","11,077.10 ",3200,Fuel - Vehicle,1012,Retford,"9,230.92 "
Nottinghamshire Fire and Rescue Service ,103766,CERTAS,CERTAS,Operational Responses,5,202408,23/11/2023,P6,9109205,"-10,240.99 ","10,240.99 ",3200,Fuel - Vehicle,1029,Highfields Station,"8,534.16 "
Nottinghamshire Fire and Rescue Service ,103942,The Lodge Tyre Co. Limited,The Lodge Tyre Co. Limited,Management & Support Services,5,202408,30/09/2023,P6,9108936,"-5,043.85 ","5,043.85 ",3202,Tyres,2084,Engineering,"4,203.24 "
Nottinghamshire Fire and Rescue Service ,103942,The Lodge Tyre Co. Limited,The Lodge Tyre Co. Limited,Management & Support Services,5,202408,31/10/2023,P6,9108965,"-8,480.51 ","8,480.51 ",3202,Tyres,2084,Engineering,"7,067.12 "
Nottinghamshire Fire and Rescue Service ,103943,Teletrac Navman (UK) Limited,Teletrac Navman (UK) Limited,Management & Support Services,5,202408,01/11/2023,P6,9108891,"-1,071.96 ","1,071.96 ",3203,Motor Tax / Licenses,2084,Engineering,893.30 
Nottinghamshire Fire and Rescue Service ,100321,Drivercheck Ltd,Drivercheck Ltd,Management & Support Services,1,202408,31/10/2023,P6,9108917,-264.00 ,264.00 ,3203,Motor Tax / Licenses,2084,Engineering,220.00 
Nottinghamshire Fire and Rescue Service ,100321,Drivercheck Ltd,Drivercheck Ltd,Management & Support Services,1,202408,31/10/2023,P6,9108938,-655.20 ,655.20 ,3203,Motor Tax / Licenses,2084,Engineering,546.00 
Nottinghamshire Fire and Rescue Service ,100202,Enterprise Rent-A-Car,Enterprise Rent-A-Car,Management & Support Services,1,202408,29/09/2023,P6,9108911,"-1,229.00 ","1,229.00 ",3400,Hire of Fleet Vehicles,2084,Engineering,"1,024.16 "
Nottinghamshire Fire and Rescue Service ,100202,Enterprise Rent-A-Car,Enterprise Rent-A-Car,Management & Support Services,1,202408,31/10/2023,P6,9108916,"-1,269.96 ","1,269.96 ",3400,Hire of Fleet Vehicles,2084,Engineering,"1,058.30 "
Nottinghamshire Fire and Rescue Service ,103958,Lithium3 Technology Recruitment Limited,Lithium3 Technology Recruitment Limited,Management & Support Services,5,202408,08/11/2023,P6,9109056,-933.60 ,933.60 ,3500,Casual Mileage,2097,ICT Service Operations,18.00 
Nottinghamshire Fire and Rescue Service ,103443,Terberg DTS UK Limited,Terberg DTS UK Limited,Management & Support Services,5,202408,01/11/2023,P6,9108945,-349.26 ,349.26 ,4000,Operational Equipment Purchase,2084,Engineering,291.05 
Nottinghamshire Fire and Rescue Service ,103443,Terberg DTS UK Limited,Terberg DTS UK Limited,Management & Support Services,5,202408,01/11/2023,P6,9108946,"-1,717.99 ","1,717.99 ",4000,Operational Equipment Purchase,2084,Engineering,"1,431.66 "
Nottinghamshire Fire and Rescue Service ,102070,Life Safety Distribution AG,Life Safety Distribution AG,Management & Support Services,1,202408,06/11/2023,P6,9109019,"-1,568.40 ","1,568.40 ",4000,Operational Equipment Purchase,2084,Engineering,51.00 
Nottinghamshire Fire and Rescue Service ,102070,Life Safety Distribution AG,Life Safety Distribution AG,Management & Support Services,1,202408,06/11/2023,P6,9109019,"-1,568.40 ","1,568.40 ",4000,Operational Equipment Purchase,2084,Engineering,"1,256.00 "
Nottinghamshire Fire and Rescue Service ,100224,Delta Fire,Delta Fire,Management & Support Services,1,202408,09/11/2023,P6,9109047,-330.60 ,330.60 ,4000,Operational Equipment Purchase,2084,Engineering,275.50 
Nottinghamshire Fire and Rescue Service ,101190,Lyon Equipment Limited,Lyon Equipment Limited,Management & Support Services,1,202408,16/11/2023,P6,9109086,-254.88 ,254.88 ,4000,Operational Equipment Purchase,2084,Engineering,212.40 
Nottinghamshire Fire and Rescue Service ,102309,Walter Frank & Sons Limited,Walter Frank & Sons Limited,Management & Support Services,1,202408,17/11/2023,P6,9109151,"-1,732.80 ","1,732.80 ",4000,Operational Equipment Purchase,2084,Engineering,"1,444.00 "
Nottinghamshire Fire and Rescue Service ,102309,Walter Frank & Sons Limited,Walter Frank & Sons Limited,Management & Support Services,1,202408,17/11/2023,P6,9109176,-531.17 ,531.17 ,4000,Operational Equipment Purchase,2084,Engineering,442.64 
Nottinghamshire Fire and Rescue Service ,104081,Wel Medical Ltd,Wel Medical Ltd,Management & Support Services,5,202408,15/11/2023,P6,9109090,"-2,040.00 ","2,040.00 ",4001,Operational Equipment (Medical),2084,Engineering,"1,700.00 "
Nottinghamshire Fire and Rescue Service ,100434,Angus Fire,Angus Fire,Management & Support Services,1,202408,30/10/2023,P6,9109121,"-1,125.60 ","1,125.60 ",4003,Fire Foam,2084,Engineering,938.00 
Nottinghamshire Fire and Rescue Service ,100109,Fire Hosetech,Fire Hosetech,Management & Support Services,1,202408,06/11/2023,P6,9108948,-596.04 ,596.04 ,4004,Fire Hose and Couplings,2084,Engineering,496.70 
Nottinghamshire Fire and Rescue Service ,100109,Fire Hosetech,Fire Hosetech,Management & Support Services,1,202408,25/11/2023,P6,9109201,-412.12 ,412.12 ,4004,Fire Hose and Couplings,2084,Engineering,343.43 
Nottinghamshire Fire and Rescue Service ,102203,Flogas Britian Limited,Flogas Britian Limited,Management & Support Services,1,202408,15/11/2023,P6,9109162,"-1,289.57 ","1,289.57 ",4006,Oxygen and Other Gases,2084,Engineering,"1,074.64 "
Nottinghamshire Fire and Rescue Service ,104113,"Zoom Video Communications, Inc.","Zoom Video Communications, Inc.",Management & Support Services,5,202408,28/10/2023,P6,9108871,-599.50 ,599.50 ,4101,Computer Software Maintenance Contracts,2097,ICT Service Operations,599.50 
Nottinghamshire Fire and Rescue Service ,102215,Performance Monitoring Systems Ltd,Performance Monitoring Systems Ltd,Management & Support Services,1,202408,31/10/2023,P6,9108874,"-7,200.00 ","7,200.00 ",4101,Computer Software Maintenance Contracts,2097,ICT Service Operations,"6,000.00 "
Nottinghamshire Fire and Rescue Service ,103483,Risual Limited,Risual Limited,Management & Support Services,5,202408,30/10/2023,P6,9108880,-270.00 ,270.00 ,4101,Computer Software Maintenance Contracts,2097,ICT Service Operations,225.00 
Nottinghamshire Fire and Rescue Service ,103344,Bytes Software Services Ltd,Bytes Software Services Ltd,Management & Support Services,5,202408,15/11/2023,P6,9109073,"-7,733.40 ","7,733.40 ",4101,Computer Software Maintenance Contracts,2097,ICT Service Operations,"6,444.50 "
Nottinghamshire Fire and Rescue Service ,102261,Airwave Solutions Ltd,Airwave Solutions Ltd,Management & Support Services,1,202408,09/11/2023,P6,9109094,-949.78 ,949.78 ,4101,Computer Software Maintenance Contracts,2097,ICT Service Operations,791.49 
Nottinghamshire Fire and Rescue Service ,103871,Zoho Corporation Private Limited,Zoho Corporation Private Limited,Management & Support Services,5,202408,17/11/2023,P6,9109102,"-6,836.40 ","6,836.40 ",4101,Computer Software Maintenance Contracts,2097,ICT Service Operations,"5,697.00 "
Nottinghamshire Fire and Rescue Service ,103483,Risual Limited,Risual Limited,Management & Support Services,5,202408,25/09/2023,P6,9109123,"-13,857.23 ","13,857.23 ",4101,Computer Software Maintenance Contracts,2097,ICT Service Operations,"11,547.69 "
Nottinghamshire Fire and Rescue Service ,101866,Leicestershire Fire & Rescue Service (Bacs),Leicestershire Fire & Rescue Service (Bacs),Operational Responses,4,202408,15/11/2023,P6,9109129,"-21,667.91 ","21,667.91 ",4101,Computer Software Maintenance Contracts,2005,Fire Control,"21,667.91 "
Nottinghamshire Fire and Rescue Service ,102103,Ricoh Uk Ltd,Ricoh Uk Ltd,Management & Support Services,1,202408,18/10/2023,P6,9108889,-465.28 ,465.28 ,4105,Photocopier,2097,ICT Service Operations,387.73 
Nottinghamshire Fire and Rescue Service ,100289,Home Office,Home Office,Management & Support Services,4,202408,08/11/2023,P6,9109191,"-68,702.81 ","68,702.81 ",4204,FireLink Contract Charges,2097,ICT Service Operations,"57,252.34 "
Nottinghamshire Fire and Rescue Service ,103092,Daisy Corporate Services Trading Limited,Daisy Corporate Services Trading Limited,Management & Support Services,1,202408,01/11/2023,P6,9109075,"-1,824.83 ","1,824.83 ",4301,Phones - Landline,2096,ICT Service Transformation,"1,520.69 "
Nottinghamshire Fire and Rescue Service ,103426,OV Limited,OV Limited,Management & Support Services,5,202408,31/10/2023,P6,9109074,-500.00 ,500.00 ,4302,Phones - Mobiles,2097,ICT Service Operations,500.00 
Nottinghamshire Fire and Rescue Service ,102495,Rosenbauer UK Plc,Rosenbauer UK Plc,Operational Responses,1,202408,14/11/2023,P6,9109140,-509.76 ,509.76 ,4401,Protective Clothing,1006,Edwinstowe,9.80 
Nottinghamshire Fire and Rescue Service ,102495,Rosenbauer UK Plc,Rosenbauer UK Plc,Operational Responses,1,202408,14/11/2023,P6,9109140,-509.76 ,509.76 ,4401,Protective Clothing,1006,Edwinstowe,415.00 
Nottinghamshire Fire and Rescue Service ,102242,Arco East Midlands,Arco East Midlands,Operational Responses,1,202408,18/09/2023,P6,9109256,-325.92 ,325.92 ,4401,Protective Clothing,1005,Ashfield,271.60 
Nottinghamshire Fire and Rescue Service ,102376,Bristol Uniforms Limited,Bristol Uniforms Limited,Management & Support Services,1,202408,07/11/2023,P6,9108989,"-8,090.36 ","8,090.36 ",4402,Uniform and Protectice Clothing Repairs,2086,Procurement,"1,252.99 "
Nottinghamshire Fire and Rescue Service ,102376,Bristol Uniforms Limited,Bristol Uniforms Limited,Management & Support Services,1,202408,10/11/2023,P6,9109118,"-10,409.33 ","10,409.33 ",4402,Uniform and Protectice Clothing Repairs,2086,Procurement,"1,820.91 "
Nottinghamshire Fire and Rescue Service ,102376,Bristol Uniforms Limited,Bristol Uniforms Limited,Management & Support Services,1,202408,07/11/2023,P6,9108989,"-8,090.36 ","8,090.36 ",4403,Laundry and Dry Cleaning,2086,Procurement,"5,488.98 "
Nottinghamshire Fire and Rescue Service ,102376,Bristol Uniforms Limited,Bristol Uniforms Limited,Management & Support Services,1,202408,10/11/2023,P6,9109118,"-10,409.33 ","10,409.33 ",4403,Laundry and Dry Cleaning,2086,Procurement,"6,853.53 "
Nottinghamshire Fire and Rescue Service ,100357,Eastern Shires Purchasing Organisation,Eastern Shires Purchasing Organisation,Management & Support Services,1,202408,10/11/2023,P6,9109070,-558.66 ,558.66 ,4500,Furniture,2087,Estates Department (Previously Premises),465.55 
Nottinghamshire Fire and Rescue Service ,100357,Eastern Shires Purchasing Organisation,Eastern Shires Purchasing Organisation,Management & Support Services,1,202408,14/11/2023,P6,9109071,-337.80 ,337.80 ,4500,Furniture,2087,Estates Department (Previously Premises),281.50 
Nottinghamshire Fire and Rescue Service ,103678,Fitness Warehouse Limited t/a Gym Gear,Fitness Warehouse Limited t/a Gym Gear,Management & Support Services,5,202408,22/11/2023,P6,9109199,-258.00 ,258.00 ,4511,Fitness Equipment Maintenance,2061,Occupational Health & Fitness,215.00 
Nottinghamshire Fire and Rescue Service ,101656,Amplivox Ltd,Amplivox Ltd,Management & Support Services,1,202408,13/10/2023,P6,9108920,-258.00 ,258.00 ,4512,Medical Equipment Maintenance,2061,Occupational Health & Fitness,215.00 
Nottinghamshire Fire and Rescue Service ,104273,Fine Foods Exchange,Fine Foods Exchange,Management & Support Services,5,202408,02/11/2023,P6,9108940,-754.80 ,754.80 ,4523,Catering/Food & Beverages,2059,Corporate Training,629.00 
Nottinghamshire Fire and Rescue Service ,100229,Brakes,Brakes,Management & Support Services,1,202408,20/11/2023,P6,9109098,-307.14 ,307.14 ,4523,Catering/Food & Beverages,2059,Corporate Training,94.02 
Nottinghamshire Fire and Rescue Service ,100229,Brakes,Brakes,Management & Support Services,1,202408,20/11/2023,P6,9109098,-307.14 ,307.14 ,4523,Catering/Food & Beverages,2059,Corporate Training,194.31 
Nottinghamshire Fire and Rescue Service ,104273,Fine Foods Exchange,Fine Foods Exchange,Management & Support Services,5,202408,28/11/2023,P6,9109301,"-2,631.60 ","2,631.60 ",4523,Catering/Food & Beverages,2059,Corporate Training,"2,193.00 "
Nottinghamshire Fire and Rescue Service ,102306,Northern Diver (International) Ltd,Northern Diver (International) Ltd,Management & Support Services,1,202408,25/08/2023,P6,9108861,-429.00 ,429.00 ,4534,Carriage and Packaging,9999,Default,9.50 
Nottinghamshire Fire and Rescue Service ,102508,Collins Nets Ltd,Collins Nets Ltd,Management & Support Services,1,202408,27/10/2023,P6,9108866,-471.60 ,471.60 ,4534,Carriage and Packaging,9999,Default,9.00 
Nottinghamshire Fire and Rescue Service ,101312,Lift Components Limited,Lift Components Limited,Management & Support Services,1,202408,30/10/2023,P6,9108972,-253.20 ,253.20 ,4534,Carriage and Packaging,9999,Default,15.00 
Nottinghamshire Fire and Rescue Service ,102508,Collins Nets Ltd,Collins Nets Ltd,Management & Support Services,1,202408,06/11/2023,P6,9108985,-394.80 ,394.80 ,4534,Carriage and Packaging,2086,Procurement,9.00 
Nottinghamshire Fire and Rescue Service ,102306,Northern Diver (International) Ltd,Northern Diver (International) Ltd,Management & Support Services,1,202408,07/11/2023,P6,9109113,-682.20 ,682.20 ,4534,Carriage and Packaging,2086,Procurement,9.50 
Nottinghamshire Fire and Rescue Service ,100468,Specialised Canvas Group,Specialised Canvas Group,Management & Support Services,1,202408,21/11/2023,P6,9109126,-367.12 ,367.12 ,4534,Carriage and Packaging,2086,Procurement,24.28 
Nottinghamshire Fire and Rescue Service ,104201,BlockaboxLimited,BlockaboxLimited,Management & Support Services,5,202408,24/11/2023,P6,9109307,-310.00 ,310.00 ,4534,Carriage and Packaging,9999,Default,10.00 
Nottinghamshire Fire and Rescue Service ,103064,Synergy Health Laboratory Services Ltd,Synergy Health Laboratory Services Ltd,Management & Support Services,5,202408,28/09/2023,P6,9108923,-684.18 ,684.18 ,4551,Medical Fees,2058,HR Support,570.15 
Nottinghamshire Fire and Rescue Service ,103064,Synergy Health Laboratory Services Ltd,Synergy Health Laboratory Services Ltd,Management & Support Services,5,202408,14/11/2023,P6,9109101,-262.80 ,262.80 ,4551,Medical Fees,2058,HR Support,219.00 
Nottinghamshire Fire and Rescue Service ,103064,Synergy Health Laboratory Services Ltd,Synergy Health Laboratory Services Ltd,Management & Support Services,5,202408,30/10/2023,P6,9109257,-585.76 ,585.76 ,4551,Medical Fees,2058,HR Support,235.80 
Nottinghamshire Fire and Rescue Service ,101844,Nottinghamshire Relate,Nottinghamshire Relate,Management & Support Services,1,202408,31/10/2023,P6,9108971,-800.00 ,800.00 ,4552,Occupational Health Costs,2061,Occupational Health & Fitness,800.00 
Nottinghamshire Fire and Rescue Service ,104157,Sound Culture Limited T/A MissyRedBoots Design,Sound Culture Limited T/A MissyRedBoots Design,Management & Support Services,5,202408,30/10/2023,P6,9108973,"-1,590.00 ","1,590.00 ",4552,Occupational Health Costs,2061,Occupational Health & Fitness,"1,325.00 "
Nottinghamshire Fire and Rescue Service ,102964,Trinity Occupational and Public Health Solutions Ltd,Trinity Occupational and Public Health Solutions Ltd,Management & Support Services,5,202408,31/10/2023,P6,9109033,"-4,500.00 ","4,500.00 ",4552,Occupational Health Costs,2061,Occupational Health & Fitness,"4,500.00 "
Nottinghamshire Fire and Rescue Service ,102964,Trinity Occupational and Public Health Solutions Ltd,Trinity Occupational and Public Health Solutions Ltd,Management & Support Services,5,202408,31/10/2023,P6,9109034,"-2,200.00 ","2,200.00 ",4552,Occupational Health Costs,2061,Occupational Health & Fitness,"2,200.00 "
Nottinghamshire Fire and Rescue Service ,104291,Suzanne Ross (2thrive Consultancy),Suzanne Ross (2thrive Consultancy),Management & Support Services,5,202408,03/11/2023,P6,9109002,"-2,030.00 ","2,030.00 ",4554,Consultancy Fees - Non Estates Related,2049,Professional Support,"2,030.00 "
Nottinghamshire Fire and Rescue Service ,104291,Suzanne Ross (2thrive Consultancy),Suzanne Ross (2thrive Consultancy),Management & Support Services,5,202408,03/11/2023,P6,9109003,"-1,450.00 ","1,450.00 ",4554,Consultancy Fees - Non Estates Related,2049,Professional Support,"1,450.00 "
Nottinghamshire Fire and Rescue Service ,104291,Suzanne Ross (2thrive Consultancy),Suzanne Ross (2thrive Consultancy),Management & Support Services,5,202408,21/11/2023,P6,9109254,"-1,950.00 ","1,950.00 ",4554,Consultancy Fees - Non Estates Related,2049,Professional Support,"1,950.00 "
Nottinghamshire Fire and Rescue Service ,103582,Softcat Limited,Softcat Limited,Management & Support Services,5,202408,28/11/2023,P6,9109293,"-2,880.00 ","2,880.00 ",4554,Consultancy Fees - Non Estates Related,2058,HR Support,"2,400.00 "
Nottinghamshire Fire and Rescue Service ,103582,Softcat Limited,Softcat Limited,Management & Support Services,5,202408,27/11/2023,P6,9109294,-480.00 ,480.00 ,4554,Consultancy Fees - Non Estates Related,2058,HR Support,400.00 
Nottinghamshire Fire and Rescue Service ,104291,Suzanne Ross (2thrive Consultancy),Suzanne Ross (2thrive Consultancy),Management & Support Services,5,202408,28/11/2023,P6,9109302,-450.00 ,450.00 ,4554,Consultancy Fees - Non Estates Related,2049,Professional Support,450.00 
Nottinghamshire Fire and Rescue Service ,103275,Zellis,Zellis,Management & Support Services,5,202408,30/10/2023,P6,9108913,"-1,043.86 ","1,043.86 ",4555,Disclosure Checks,2049,Professional Support,396.00 
Nottinghamshire Fire and Rescue Service ,103275,Zellis,Zellis,Management & Support Services,5,202408,30/10/2023,P6,9108913,"-1,043.86 ","1,043.86 ",4555,Disclosure Checks,2049,Professional Support,539.88 
Nottinghamshire Fire and Rescue Service ,104123,St Philips Centre Limited,St Philips Centre Limited,Management & Support Services,5,202408,20/10/2023,P6,9109057,-250.00 ,250.00 ,4556,Translation and Interpretation Services,2054,Equalities Team,250.00 
Nottinghamshire Fire and Rescue Service ,103064,Synergy Health Laboratory Services Ltd,Synergy Health Laboratory Services Ltd,Management & Support Services,5,202408,30/10/2023,P6,9109257,-585.76 ,585.76 ,4556,Translation and Interpretation Services,2058,HR Support,252.33 
Nottinghamshire Fire and Rescue Service ,104284,Sarah Wilkinson Design,Sarah Wilkinson Design,Management & Support Services,10,202408,09/11/2023,P6,9109017,-915.00 ,915.00 ,4560,Subsistence,2014,On Call / Rostering Team,140.00 
Nottinghamshire Fire and Rescue Service ,104064,Redbrick Print Solutions LLP,Redbrick Print Solutions LLP,Management & Support Services,5,202408,18/10/2023,P6,9108858,-354.00 ,354.00 ,4583,Marketing and Publicity,2051,Corporate Communications,295.00 
Nottinghamshire Fire and Rescue Service ,104064,Redbrick Print Solutions LLP,Redbrick Print Solutions LLP,Management & Support Services,5,202408,12/10/2023,P6,9108918,-395.00 ,395.00 ,4583,Marketing and Publicity,2051,Corporate Communications,395.00 
Nottinghamshire Fire and Rescue Service ,104284,Sarah Wilkinson Design,Sarah Wilkinson Design,Management & Support Services,10,202408,09/11/2023,P6,9109017,-915.00 ,915.00 ,4583,Marketing and Publicity,2051,Corporate Communications,210.00 
Nottinghamshire Fire and Rescue Service ,104284,Sarah Wilkinson Design,Sarah Wilkinson Design,Management & Support Services,10,202408,09/11/2023,P6,9109017,-915.00 ,915.00 ,4583,Marketing and Publicity,2051,Corporate Communications,565.00 
Nottinghamshire Fire and Rescue Service ,104307,Smidr 73 Design,Smidr 73 Design,Management & Support Services,10,202408,09/11/2023,P6,9109066,-400.00 ,400.00 ,4583,Marketing and Publicity,2093,Command Suite,400.00 
Nottinghamshire Fire and Rescue Service ,104276,Motors in Motion Limited,Motors in Motion Limited,Operational Responses,5,202408,16/10/2023,P6,9108893,"-3,456.00 ","3,456.00 ",4594,Training/ Teaching Equipment,1002,Blidworth,320.00 
Nottinghamshire Fire and Rescue Service ,104276,Motors in Motion Limited,Motors in Motion Limited,Operational Responses,5,202408,16/10/2023,P6,9108893,"-3,456.00 ","3,456.00 ",4594,Training/ Teaching Equipment,1006,Edwinstowe,320.00 
Nottinghamshire Fire and Rescue Service ,104276,Motors in Motion Limited,Motors in Motion Limited,Operational Responses,5,202408,16/10/2023,P6,9108893,"-3,456.00 ","3,456.00 ",4594,Training/ Teaching Equipment,1007,Warsop,640.00 
Nottinghamshire Fire and Rescue Service ,104276,Motors in Motion Limited,Motors in Motion Limited,Operational Responses,5,202408,16/10/2023,P6,9108893,"-3,456.00 ","3,456.00 ",4594,Training/ Teaching Equipment,1008,Worksop,320.00 
Nottinghamshire Fire and Rescue Service ,104276,Motors in Motion Limited,Motors in Motion Limited,Management & Support Services,5,202408,16/10/2023,P6,9108893,"-3,456.00 ","3,456.00 ",4594,Training/ Teaching Equipment,2059,Corporate Training,640.00 
Nottinghamshire Fire and Rescue Service ,102073,B D Motor Spares,B D Motor Spares,Management & Support Services,1,202408,13/11/2023,P6,9109032,"-5,040.00 ","5,040.00 ",4594,Training/ Teaching Equipment,2059,Corporate Training,"4,200.00 "
Nottinghamshire Fire and Rescue Service ,104276,Motors in Motion Limited,Motors in Motion Limited,Management & Support Services,5,202408,23/10/2023,P6,9108907,768.00 ,-768.00 ,4594,Training/ Teaching Equipment,2059,Corporate Training,-640.00 
Nottinghamshire Fire and Rescue Service ,103849,Vision Support Services Ltd,Vision Support Services Ltd,Operational Responses,5,202408,30/10/2023,P6,9108892,-367.14 ,367.14 ,4600,Community Safety Delivery Consumables,1019,West Bridgford,305.95 
Nottinghamshire Fire and Rescue Service ,103849,Vision Support Services Ltd,Vision Support Services Ltd,Management & Support Services,5,202408,01/11/2023,P6,9108919,"-3,564.83 ","3,564.83 ",4600,Community Safety Delivery Consumables,2068,Prevention,"2,970.69 "
Nottinghamshire Fire and Rescue Service ,103849,Vision Support Services Ltd,Vision Support Services Ltd,Operational Responses,5,202408,27/09/2023,P6,9108996,-367.14 ,367.14 ,4600,Community Safety Delivery Consumables,1006,Edwinstowe,305.95 
Nottinghamshire Fire and Rescue Service ,103849,Vision Support Services Ltd,Vision Support Services Ltd,Operational Responses,5,202408,02/11/2023,P6,9109005,-598.80 ,598.80 ,4600,Community Safety Delivery Consumables,1020,Stockhill,499.00 
Nottinghamshire Fire and Rescue Service ,103849,Vision Support Services Ltd,Vision Support Services Ltd,Operational Responses,5,202408,22/11/2023,P6,9109145,-375.30 ,375.30 ,4600,Community Safety Delivery Consumables,1026,Arnold,312.75 
Nottinghamshire Fire and Rescue Service ,101867,Nottinghamshire Police and Crime Commissioner,Nottinghamshire Police and Crime Commissioner,Management & Support Services,4,202408,28/02/2023,P6,9109279,-300.00 ,300.00 ,4626,Gifts and Donations,2054,Equalities Team,300.00 
Nottinghamshire Fire and Rescue Service ,104288,DTP Hospitality UK Ltd –Crowne Plaza Nottingham,DTP Hospitality UK Ltd –Crowne Plaza Nottingham,Management & Support Services,5,202408,24/11/2023,P6,9109292,"-8,755.60 ","8,755.60 ",4626,Gifts and Donations,2093,Command Suite,"8,129.17 "
Nottinghamshire Fire and Rescue Service ,101782,Derbyshire Fire Authority,Derbyshire Fire Authority,Operational Responses,4,202408,08/11/2023,P6,9109052,"-455,616.15 ","455,616.15 ",5000,Third Party Payments,2005,Fire Control,"455,616.15 "
Nottinghamshire Fire and Rescue Service ,101712,Browne Jacobson LLP,Browne Jacobson LLP,Operational Responses,1,202408,26/10/2023,P6,9109000,"-1,264.44 ","1,264.44 ",7002,Legal Services,1008,Worksop,101.50 
Nottinghamshire Fire and Rescue Service ,101712,Browne Jacobson LLP,Browne Jacobson LLP,Prevention & Education,1,202408,26/10/2023,P6,9109000,"-1,264.44 ","1,264.44 ",7002,Legal Services,1036,Clifton Community Safety Centre,116.00 
Nottinghamshire Fire and Rescue Service ,101712,Browne Jacobson LLP,Browne Jacobson LLP,Management & Support Services,1,202408,26/10/2023,P6,9109000,"-1,264.44 ","1,264.44 ",7002,Legal Services,2058,HR Support,691.20 
Nottinghamshire Fire and Rescue Service ,101712,Browne Jacobson LLP,Browne Jacobson LLP,Prevention & Education,1,202408,10/11/2023,P6,9109240,"-1,142.64 ","1,142.64 ",7002,Legal Services,1036,Clifton Community Safety Centre,116.00 
Nottinghamshire Fire and Rescue Service ,101712,Browne Jacobson LLP,Browne Jacobson LLP,Management & Support Services,1,202408,10/11/2023,P6,9109240,"-1,142.64 ","1,142.64 ",7002,Legal Services,2058,HR Support,691.20 
Nottinghamshire Fire and Rescue Service ,101947,Mercer Human Resource Consulting Ltd,Mercer Human Resource Consulting Ltd,Management & Support Services,1,202408,16/11/2023,P6,9109093,"-1,800.00 ","1,800.00 ",7500,Treasury Services,2081,Finance,"1,500.00 "
Nottinghamshire Fire and Rescue Service ,100878,Nottinghamshire County Council,Nottinghamshire County Council,Management & Support Services,4,202408,21/11/2023,P6,9109211,"-8,553.60 ","8,553.60 ",7500,Treasury Services,1086,Corporate Core,"7,128.00 "
Nottinghamshire Fire and Rescue Service ,103963,Ernst And Young LLP,Ernst And Young LLP,Management & Support Services,1,202408,08/11/2023,P6,9109045,"-28,690.80 ","28,690.80 ",7502,External Audit Fees,2081,Finance,"23,909.00 "
Nottinghamshire Fire and Rescue Service ,102306,Northern Diver (International) Ltd,Northern Diver (International) Ltd,Management & Support Services,1,202408,25/08/2023,P6,9108861,-429.00 ,429.00 ,B314,Stock,9999,Stock ,348.00 
Nottinghamshire Fire and Rescue Service ,101851,Complete Business Solutions Group Ltd,Complete Business Solutions Group Ltd,Management & Support Services,1,202408,30/10/2023,P6,9108862,-719.40 ,719.40 ,B314,Stock,9999,Stock ,599.50 
Nottinghamshire Fire and Rescue Service ,102376,Bristol Uniforms Limited,Bristol Uniforms Limited,Management & Support Services,1,202408,27/10/2023,P6,9108863,"-1,740.37 ","1,740.37 ",B314,Stock,9999,Stock ,"1,450.31 "
Nottinghamshire Fire and Rescue Service ,104064,Redbrick Print Solutions LLP,Redbrick Print Solutions LLP,Management & Support Services,5,202408,18/10/2023,P6,9108864,-354.00 ,354.00 ,B314,Stock,9999,Stock ,295.00 
Nottinghamshire Fire and Rescue Service ,102864,William Sugden & sons Limited,William Sugden & sons Limited,Management & Support Services,5,202408,25/08/2023,P6,9108865,-983.51 ,983.51 ,B314,Stock,9999,Stock ,819.59 
Nottinghamshire Fire and Rescue Service ,102508,Collins Nets Ltd,Collins Nets Ltd,Management & Support Services,1,202408,27/10/2023,P6,9108866,-471.60 ,471.60 ,B314,Stock,9999,Stock ,384.00 
Nottinghamshire Fire and Rescue Service ,102190,Dot Promotional Clothing,Dot Promotional Clothing,Management & Support Services,1,202408,27/10/2023,P6,9108872,-261.00 ,261.00 ,B314,Stock,9999,Stock ,217.50 
Nottinghamshire Fire and Rescue Service ,102190,Dot Promotional Clothing,Dot Promotional Clothing,Management & Support Services,1,202408,27/10/2023,P6,9108873,-435.00 ,435.00 ,B314,Stock,9999,Stock ,362.50 
Nottinghamshire Fire and Rescue Service ,102190,Dot Promotional Clothing,Dot Promotional Clothing,Management & Support Services,1,202408,31/10/2023,P6,9108885,-365.40 ,365.40 ,B314,Stock,9999,Stock ,304.50 
Nottinghamshire Fire and Rescue Service ,104070,Apollo Signs & Engraving,Apollo Signs & Engraving,Management & Support Services,5,202408,01/11/2023,P6,9108886,-465.00 ,465.00 ,B314,Stock,9999,Stock ,387.50 
Nottinghamshire Fire and Rescue Service ,100357,Eastern Shires Purchasing Organisation,Eastern Shires Purchasing Organisation,Management & Support Services,1,202408,30/10/2023,P6,9108909,-345.66 ,345.66 ,B314,Stock,9999,Stock ,288.05 
Nottinghamshire Fire and Rescue Service ,103981,Joseph Gleave and Son Limited -Joseph Gleave and Son (Holdings) Limited,Joseph Gleave and Son Limited -Joseph Gleave and Son (Holdings) Limited,Management & Support Services,5,202408,02/11/2023,P6,9108912,-497.66 ,497.66 ,B314,Stock,9999,Stock ,414.72 
Nottinghamshire Fire and Rescue Service ,103242,New Balance Athletic Shoes (UK) Limited,New Balance Athletic Shoes (UK) Limited,Management & Support Services,5,202408,01/11/2023,P6,9108914,"-4,104.44 ","4,104.44 ",B314,Stock,9999,Stock ,"3,420.36 "
Nottinghamshire Fire and Rescue Service ,102376,Bristol Uniforms Limited,Bristol Uniforms Limited,Management & Support Services,1,202408,01/11/2023,P6,9108921,-389.96 ,389.96 ,B314,Stock,9999,Stock ,324.97 
Nottinghamshire Fire and Rescue Service ,104254,Defib4Life Limited,Defib4Life Limited,Management & Support Services,5,202408,09/06/2023,P6,9108932,-392.83 ,392.83 ,B314,Stock,9999,Stock ,327.36 
Nottinghamshire Fire and Rescue Service ,102190,Dot Promotional Clothing,Dot Promotional Clothing,Management & Support Services,1,202408,13/07/2023,P6,9108967,-331.20 ,331.20 ,B314,Stock,9999,Stock ,276.00 
Nottinghamshire Fire and Rescue Service ,101312,Lift Components Limited,Lift Components Limited,Management & Support Services,1,202408,30/10/2023,P6,9108972,-253.20 ,253.20 ,B314,Stock,9999,Stock ,196.00 
Nottinghamshire Fire and Rescue Service ,102101,H-Squared,H-Squared,Management & Support Services,1,202408,06/11/2023,P6,9108974,-265.68 ,265.68 ,B314,Stock,9999,Stock ,221.40 
Nottinghamshire Fire and Rescue Service ,102508,Collins Nets Ltd,Collins Nets Ltd,Management & Support Services,1,202408,06/11/2023,P6,9108985,-394.80 ,394.80 ,B314,Stock,9999,Stock ,320.00 
Nottinghamshire Fire and Rescue Service ,102376,Bristol Uniforms Limited,Bristol Uniforms Limited,Management & Support Services,1,202408,27/07/2023,P6,9108994,-633.94 ,633.94 ,B314,Stock,9999,Stock ,528.28 
Nottinghamshire Fire and Rescue Service ,103981,Joseph Gleave and Son Limited -Joseph Gleave and Son (Holdings) Limited,Joseph Gleave and Son Limited -Joseph Gleave and Son (Holdings) Limited,Management & Support Services,5,202408,10/11/2023,P6,9109035,-516.24 ,516.24 ,B314,Stock,9999,Stock ,430.20 
Nottinghamshire Fire and Rescue Service ,100114,Goliath Footwear Ltd,Goliath Footwear Ltd,Management & Support Services,1,202408,14/11/2023,P6,9109059,"-4,524.72 ","4,524.72 ",B314,Stock,9999,Stock ,"3,770.60 "
Nottinghamshire Fire and Rescue Service ,100357,Eastern Shires Purchasing Organisation,Eastern Shires Purchasing Organisation,Management & Support Services,1,202408,14/11/2023,P6,9109063,-892.20 ,892.20 ,B314,Stock,9999,Stock ,743.50 
Nottinghamshire Fire and Rescue Service ,100468,Specialised Canvas Group,Specialised Canvas Group,Management & Support Services,1,202408,08/11/2023,P6,9109064,"-1,129.17 ","1,129.17 ",B314,Stock,9999,Stock ,940.98 
Nottinghamshire Fire and Rescue Service ,102376,Bristol Uniforms Limited,Bristol Uniforms Limited,Management & Support Services,1,202408,14/11/2023,P6,9109106,"-1,559.86 ","1,559.86 ",B314,Stock,9999,Stock ,"1,299.88 "
Nottinghamshire Fire and Rescue Service ,102376,Bristol Uniforms Limited,Bristol Uniforms Limited,Management & Support Services,1,202408,14/11/2023,P6,9109107,"-3,005.11 ","3,005.11 ",B314,Stock,9999,Stock ,"2,504.26 "
Nottinghamshire Fire and Rescue Service ,102376,Bristol Uniforms Limited,Bristol Uniforms Limited,Management & Support Services,1,202408,14/11/2023,P6,9109108,"-7,485.41 ","7,485.41 ",B314,Stock,9999,Stock ,"6,237.84 "
Nottinghamshire Fire and Rescue Service ,102376,Bristol Uniforms Limited,Bristol Uniforms Limited,Management & Support Services,1,202408,14/11/2023,P6,9109109,"-1,559.86 ","1,559.86 ",B314,Stock,9999,Stock ,"1,299.88 "
Nottinghamshire Fire and Rescue Service ,102376,Bristol Uniforms Limited,Bristol Uniforms Limited,Management & Support Services,1,202408,14/11/2023,P6,9109110,"-6,118.42 ","6,118.42 ",B314,Stock,9999,Stock ,"5,098.68 "
Nottinghamshire Fire and Rescue Service ,102306,Northern Diver (International) Ltd,Northern Diver (International) Ltd,Management & Support Services,1,202408,07/11/2023,P6,9109113,-682.20 ,682.20 ,B314,Stock,9999,Stock ,559.00 
Nottinghamshire Fire and Rescue Service ,102376,Bristol Uniforms Limited,Bristol Uniforms Limited,Management & Support Services,1,202408,14/11/2023,P6,9109117,"-1,559.86 ","1,559.86 ",B314,Stock,9999,Stock ,"1,299.88 "
Nottinghamshire Fire and Rescue Service ,102864,William Sugden & sons Limited,William Sugden & sons Limited,Management & Support Services,5,202408,07/11/2023,P6,9109119,"-1,463.22 ","1,463.22 ",B314,Stock,9999,Stock ,"1,219.32 "
Nottinghamshire Fire and Rescue Service ,102376,Bristol Uniforms Limited,Bristol Uniforms Limited,Management & Support Services,1,202408,14/11/2023,P6,9109120,-382.73 ,382.73 ,B314,Stock,9999,Stock ,318.94 
Nottinghamshire Fire and Rescue Service ,100468,Specialised Canvas Group,Specialised Canvas Group,Management & Support Services,1,202408,21/11/2023,P6,9109126,-367.12 ,367.12 ,B314,Stock,9999,Stock ,281.64 
Nottinghamshire Fire and Rescue Service ,102864,William Sugden & sons Limited,William Sugden & sons Limited,Management & Support Services,5,202408,17/11/2023,P6,9109160,-256.20 ,256.20 ,B314,Stock,9999,Stock ,213.50 
Nottinghamshire Fire and Rescue Service ,100357,Eastern Shires Purchasing Organisation,Eastern Shires Purchasing Organisation,Management & Support Services,1,202408,21/11/2023,P6,9109188,"-1,159.80 ","1,159.80 ",B314,Stock,9999,Stock ,966.50 
Nottinghamshire Fire and Rescue Service ,103981,Joseph Gleave and Son Limited -Joseph Gleave and Son (Holdings) Limited,Joseph Gleave and Son Limited -Joseph Gleave and Son (Holdings) Limited,Management & Support Services,5,202408,24/11/2023,P6,9109192,"-1,161.30 ","1,161.30 ",B314,Stock,9999,Stock ,967.75 
Nottinghamshire Fire and Rescue Service ,102864,William Sugden & sons Limited,William Sugden & sons Limited,Management & Support Services,5,202408,23/11/2023,P6,9109195,-266.34 ,266.34 ,B314,Stock,9999,Stock ,221.95 
Nottinghamshire Fire and Rescue Service ,102190,Dot Promotional Clothing,Dot Promotional Clothing,Management & Support Services,1,202408,23/11/2023,P6,9109198,-469.80 ,469.80 ,B314,Stock,9999,Stock ,391.50 
Nottinghamshire Fire and Rescue Service ,102190,Dot Promotional Clothing,Dot Promotional Clothing,Management & Support Services,1,202408,06/11/2023,P6,9109286,-380.88 ,380.88 ,B314,Stock,9999,Stock ,317.40 
Nottinghamshire Fire and Rescue Service ,102190,Dot Promotional Clothing,Dot Promotional Clothing,Management & Support Services,1,202408,28/11/2023,P6,9109288,"-1,523.52 ","1,523.52 ",B314,Stock,9999,Stock ,"1,269.60 "
Nottinghamshire Fire and Rescue Service ,102190,Dot Promotional Clothing,Dot Promotional Clothing,Management & Support Services,1,202408,28/11/2023,P6,9109295,-646.27 ,646.27 ,B314,Stock,9999,Stock ,538.56 
Nottinghamshire Fire and Rescue Service ,102376,Bristol Uniforms Limited,Bristol Uniforms Limited,Management & Support Services,1,202408,14/11/2023,P6,9109296,"-2,708.04 ","2,708.04 ",B314,Stock,9999,Stock ,"2,256.70 "
Nottinghamshire Fire and Rescue Service ,102376,Bristol Uniforms Limited,Bristol Uniforms Limited,Management & Support Services,1,202408,15/09/2023,P6,9109299,-388.80 ,388.80 ,B314,Stock,9999,Stock ,324.00 
Nottinghamshire Fire and Rescue Service ,102376,Bristol Uniforms Limited,Bristol Uniforms Limited,Management & Support Services,1,202408,03/10/2023,P6,9109300,"-1,244.35 ","1,244.35 ",B314,Stock,9999,Stock ,"1,036.96 "
Nottinghamshire Fire and Rescue Service ,104020,MPL (Yorkshire) Ltd,MPL (Yorkshire) Ltd,Management & Support Services,5,202408,23/11/2023,P6,9109304,-450.00 ,450.00 ,B314,Stock,9999,Stock ,375.00 
Nottinghamshire Fire and Rescue Service ,103094,Draeger Safety UK Limited,Draeger Safety UK Limited,Management & Support Services,5,202408,24/11/2023,P6,9109305,"-1,170.47 ","1,170.47 ",B314,Stock,9999,Stock ,975.39 
Nottinghamshire Fire and Rescue Service ,104201,BlockaboxLimited,BlockaboxLimited,Management & Support Services,5,202408,24/11/2023,P6,9109307,-310.00 ,310.00 ,B314,Stock,9999,Stock ,300.00 
Nottinghamshire Fire and Rescue Service ,100357,Eastern Shires Purchasing Organisation,Eastern Shires Purchasing Organisation,Management & Support Services,1,202408,27/11/2023,P6,9109314,-586.44 ,586.44 ,B314,Stock,9999,Stock ,488.70 
Nottinghamshire Fire and Rescue Service ,102190,Dot Promotional Clothing,Dot Promotional Clothing,Management & Support Services,1,202408,29/11/2023,P6,9109318,-576.00 ,576.00 ,B314,Stock,9999,Stock ,480.00 
Nottinghamshire Fire and Rescue Service ,104312,Sandbach Truck and Van Ltd,Sandbach Truck and Van Ltd,Management & Support Services,5,202408,06/11/2023,P6,9108991,"-24,000.00 ","24,000.00 ",C001,Vehicle Purchase,4001,Light Vehicle Replacement,"20,000.00 "
Nottinghamshire Fire and Rescue Service ,101100,Angloco Limited,Angloco Limited,Management & Support Services,1,202408,27/10/2023,P6,9109008,"-166,378.80 ","166,378.80 ",C001,Vehicle Purchase,4000,Rescue Pump Replacement,"138,649.00 "
Nottinghamshire Fire and Rescue Service ,101100,Angloco Limited,Angloco Limited,Management & Support Services,1,202408,27/10/2023,P6,9109009,"-166,378.80 ","166,378.80 ",C001,Vehicle Purchase,4000,Rescue Pump Replacement,"138,649.00 "
Nottinghamshire Fire and Rescue Service ,101100,Angloco Limited,Angloco Limited,Management & Support Services,1,202408,07/11/2023,P6,9109018,"-166,378.80 ","166,378.80 ",C001,Vehicle Purchase,4000,Rescue Pump Replacement,"138,649.00 "
Nottinghamshire Fire and Rescue Service ,101100,Angloco Limited,Angloco Limited,Management & Support Services,1,202408,07/11/2023,P6,9109020,"-166,378.80 ","166,378.80 ",C001,Vehicle Purchase,4000,Rescue Pump Replacement,"138,649.00 "
Nottinghamshire Fire and Rescue Service ,101100,Angloco Limited,Angloco Limited,Management & Support Services,1,202408,07/11/2023,P6,9109021,"-166,378.80 ","166,378.80 ",C001,Vehicle Purchase,4000,Rescue Pump Replacement,"138,649.00 "
Nottinghamshire Fire and Rescue Service ,101100,Angloco Limited,Angloco Limited,Management & Support Services,1,202408,07/11/2023,P6,9109022,"-166,378.80 ","166,378.80 ",C001,Vehicle Purchase,4000,Rescue Pump Replacement,"138,649.00 "
Nottinghamshire Fire and Rescue Service ,104260,Designs Signage Solutions Ltd,Designs Signage Solutions Ltd,Management & Support Services,5,202408,14/11/2023,P6,9109044,"-1,944.00 ","1,944.00 ",C001,Vehicle Purchase,4001,Light Vehicle Replacement,"1,620.00 "
Nottinghamshire Fire and Rescue Service ,101100,Angloco Limited,Angloco Limited,Management & Support Services,1,202408,17/11/2023,P6,9109096,"-166,378.80 ","166,378.80 ",C001,Vehicle Purchase,4000,Rescue Pump Replacement,"138,649.00 "
Nottinghamshire Fire and Rescue Service ,101100,Angloco Limited,Angloco Limited,Management & Support Services,1,202408,17/11/2023,P6,9109097,"-166,378.80 ","166,378.80 ",C001,Vehicle Purchase,4000,Rescue Pump Replacement,"138,649.00 "
Nottinghamshire Fire and Rescue Service ,101100,Angloco Limited,Angloco Limited,Management & Support Services,1,202408,22/11/2023,P6,9109220,"-166,378.80 ","166,378.80 ",C001,Vehicle Purchase,4000,Rescue Pump Replacement,"138,649.00 "
Nottinghamshire Fire and Rescue Service ,101100,Angloco Limited,Angloco Limited,Management & Support Services,1,202408,22/11/2023,P6,9109221,"-166,378.80 ","166,378.80 ",C001,Vehicle Purchase,4000,Rescue Pump Replacement,"138,649.00 "
Nottinghamshire Fire and Rescue Service ,101100,Angloco Limited,Angloco Limited,Management & Support Services,1,202408,22/11/2023,P6,9109222,"-166,378.80 ","166,378.80 ",C001,Vehicle Purchase,4000,Rescue Pump Replacement,"138,649.00 "
Nottinghamshire Fire and Rescue Service ,101100,Angloco Limited,Angloco Limited,Management & Support Services,1,202408,22/11/2023,P6,9109223,"-166,378.80 ","166,378.80 ",C001,Vehicle Purchase,4000,Rescue Pump Replacement,"138,649.00 "
Nottinghamshire Fire and Rescue Service ,101100,Angloco Limited,Angloco Limited,Management & Support Services,1,202408,22/11/2023,P6,9109224,"-166,378.80 ","166,378.80 ",C001,Vehicle Purchase,4000,Rescue Pump Replacement,"138,649.00 "
Nottinghamshire Fire and Rescue Service ,101867,Nottinghamshire Police and Crime Commissioner,Nottinghamshire Police and Crime Commissioner,Management & Support Services,4,202408,21/11/2023,P6,9109132,"-14,748.00 ","14,748.00 ",C101,Building Works,4101,Non Operational Buildings Improvements & Refurbishments,"12,290.00 "
Nottinghamshire Fire and Rescue Service ,103919,Chargemaster Limited,Chargemaster Limited,Management & Support Services,5,202408,28/11/2023,P6,9109308,"-1,440.00 ","1,440.00 ",C101,Building Works,4100,Fire Station Improvement & Refurbishments,"1,200.00 "
Nottinghamshire Fire and Rescue Service ,104229,YMD Boon Ltd,YMD Boon Ltd,Management & Support Services,5,202408,25/10/2023,P6,9109133,"-11,424.00 ","11,424.00 ",C150,Professional Fees - Architects,4100,Fire Station Improvement & Refurbishments,"9,520.00 "
Nottinghamshire Fire and Rescue Service ,104229,YMD Boon Ltd,YMD Boon Ltd,Management & Support Services,5,202408,25/10/2023,P6,9109134,"-3,456.00 ","3,456.00 ",C150,Professional Fees - Architects,4100,Fire Station Improvement & Refurbishments,"2,880.00 "
Nottinghamshire Fire and Rescue Service ,104229,YMD Boon Ltd,YMD Boon Ltd,Management & Support Services,5,202408,25/10/2023,P6,9109135,"-3,456.00 ","3,456.00 ",C150,Professional Fees - Architects,4100,Fire Station Improvement & Refurbishments,"2,880.00 "
Nottinghamshire Fire and Rescue Service ,104229,YMD Boon Ltd,YMD Boon Ltd,Management & Support Services,5,202408,25/10/2023,P6,9109136,"-3,456.00 ","3,456.00 ",C150,Professional Fees - Architects,4100,Fire Station Improvement & Refurbishments,"2,880.00 "
Nottinghamshire Fire and Rescue Service ,104229,YMD Boon Ltd,YMD Boon Ltd,Management & Support Services,5,202408,25/10/2023,P6,9109137,"-3,456.00 ","3,456.00 ",C150,Professional Fees - Architects,4100,Fire Station Improvement & Refurbishments,"2,880.00 "
Nottinghamshire Fire and Rescue Service ,104229,YMD Boon Ltd,YMD Boon Ltd,Management & Support Services,5,202408,25/10/2023,P6,9109138,"-3,456.00 ","3,456.00 ",C150,Professional Fees - Architects,4100,Fire Station Improvement & Refurbishments,"2,880.00 "
Nottinghamshire Fire and Rescue Service ,104229,YMD Boon Ltd,YMD Boon Ltd,Management & Support Services,5,202408,25/10/2023,P6,9109139,"-3,456.00 ","3,456.00 ",C150,Professional Fees - Architects,4100,Fire Station Improvement & Refurbishments,"2,880.00 "
Nottinghamshire Fire and Rescue Service ,104229,YMD Boon Ltd,YMD Boon Ltd,Management & Support Services,5,202408,25/10/2023,P6,9109141,"-3,456.00 ","3,456.00 ",C150,Professional Fees - Architects,4100,Fire Station Improvement & Refurbishments,"2,880.00 "
Nottinghamshire Fire and Rescue Service ,104229,YMD Boon Ltd,YMD Boon Ltd,Management & Support Services,5,202408,25/10/2023,P6,9109142,"-3,456.00 ","3,456.00 ",C150,Professional Fees - Architects,4100,Fire Station Improvement & Refurbishments,"2,880.00 "
Nottinghamshire Fire and Rescue Service ,104229,YMD Boon Ltd,YMD Boon Ltd,Management & Support Services,5,202408,25/10/2023,P6,9109143,"-3,456.00 ","3,456.00 ",C150,Professional Fees - Architects,4100,Fire Station Improvement & Refurbishments,"2,880.00 "
Nottinghamshire Fire and Rescue Service ,104229,YMD Boon Ltd,YMD Boon Ltd,Management & Support Services,5,202408,25/10/2023,P6,9109144,"-3,456.00 ","3,456.00 ",C150,Professional Fees - Architects,4100,Fire Station Improvement & Refurbishments,"2,880.00 "
Nottinghamshire Fire and Rescue Service ,104284,Sarah Wilkinson Design,Sarah Wilkinson Design,Management & Support Services,10,202408,16/10/2023,P6,9109125,"-1,015.00 ","1,015.00 ",C154,Professional Fees - Design,2051,Corporate Communications,"1,015.00 "
Nottinghamshire Fire and Rescue Service ,101712,Browne Jacobson LLP,Browne Jacobson LLP,Management & Support Services,1,202408,26/10/2023,P6,9109000,"-1,264.44 ","1,264.44 ",C157,Professional Fees - Legal,4102,Strategic New Build Projects,145.00 
Nottinghamshire Fire and Rescue Service ,101712,Browne Jacobson LLP,Browne Jacobson LLP,Management & Support Services,1,202408,10/11/2023,P6,9109240,"-1,142.64 ","1,142.64 ",C157,Professional Fees - Legal,4102,Strategic New Build Projects,145.00 
Nottinghamshire Fire and Rescue Service ,104227,WCL (UK) Ltd trading as Everything ICT,WCL (UK) Ltd trading as Everything ICT,Management & Support Services,5,202408,10/11/2023,P6,9109060,"-3,000.96 ","3,000.96 ",C200,Hardware,4300,ICT Capital Programme,"2,500.80 "
Nottinghamshire Fire and Rescue Service ,104227,WCL (UK) Ltd trading as Everything ICT,WCL (UK) Ltd trading as Everything ICT,Management & Support Services,5,202408,10/11/2023,P6,9109061,"-14,286.39 ","14,286.39 ",C200,Hardware,4300,ICT Capital Programme,"11,905.32 "
Nottinghamshire Fire and Rescue Service ,103483,Risual Limited,Risual Limited,Management & Support Services,5,202408,31/08/2023,P6,9109122,-270.60 ,270.60 ,C200,Hardware,4300,ICT Capital Programme,225.50 
Nottinghamshire Fire and Rescue Service ,103483,Risual Limited,Risual Limited,Management & Support Services,5,202408,27/10/2023,P6,9108943,"-1,140.00 ","1,140.00 ",C202,Consultancy and Services,4300,ICT Capital Programme,950.00 
,***Note:,,,,,,,,,,,,,,,
,"***The report shows the payment in its original form. This means disaggregating many invoices into individual component payments many of which will be less than £250 in their own right. This explains why you will see many of the amounts showing less than £250. They were, however, paid as part of an invoice of £250 or more.

**** The Invoice date is the date issued on the invoice. This date may fall out of the date range for the report. In most cases this is due to the invoice being received  late.",,,,,,,,,,,,,,,